2CCN - Level 2 Cost Centre Name,,9CCN - Level 9 Cost Centre Name,9CCC - Level 9 Cost Centre Code,9AN - Level 9 Account Name,9AC - Level 9 Account Code,Transaction Description,Date Paid,Transaction Reference,Analysed Amount,2AC - Level 2 Account Codes,Supplier Name,Supplier Code
Gloucester City Council,23UE,Civica Admin Charges,RT105,Postages,5400,ACCT 0870585007,01/09/2015,407101,1307.41,NET,Royal Mail S.Wales & South West,35830S
Gloucester City Council,23UE,Client Revs & Bens Contract,RT240,Bailiffs Fees,5368,VAT ONLY INVOICE,01/09/2015,407095,0,NET,Bristow & Sutor,05450M
Gloucester City Council,23UE,Client Revs & Bens Contract,RT240,Bailiffs Fees,5368,VAT ONLY INVOICE,01/09/2015,407096,0,NET,Bristow & Sutor,05450M
Gloucester City Council,23UE,Client Revs & Bens Contract,RT240,Bailiffs Fees,5368,VAT ONLY INVOICE,01/09/2015,407097,0,NET,Bristow & Sutor,05450M
Gloucester City Council,23UE,Contact Centre,RB300,Postages,5400,acct 0074842000,01/09/2015,407020,40.19,NET,Royal Mail S.Wales & South West,35830S
Gloucester City Council,23UE,REDACTED,REDACTED,REDACTED,REDACTED,REDACTED,01/09/2015,REDACTED,300,NET,REDACTED,REDACTED
Gloucester City Council,23UE,Blackfriars Catering,LA220,Catering Provisions -Liquor,5111,DRINK,02/09/2015,407145,116,NET,Gloucester Brewery,13373F
Gloucester City Council,23UE,Blackfriars Catering,LA220,Catering Provisions -Liquor,5111,DRINK,02/09/2015,407152,207.89,NET,Cellar Supplies Cheltenham Ltd,01563L
Gloucester City Council,23UE,REDACTED,REDACTED,REDACTED,REDACTED,REDACTED,02/09/2015,REDACTED,540,NET,REDACTED,REDACTED
Gloucester City Council,23UE,Business Transformation & Tech,RT700,Computer Hardware <5000,5420,Dell Latitude,02/09/2015,405209,972.9,NET,Dell Computers Corporation Ltd,55920C
Gloucester City Council,23UE,Business Transformation & Tech,RT700,Computer Hardware <5000,5420,Dell Latitude,02/09/2015,405944,972.9,NET,Dell Computers Corporation Ltd,55920C
Gloucester City Council,23UE,Business Transformation & Tech,RT700,Computer Hardware <5000,5420,Latitude E6540,02/09/2015,405907,1857,NET,Dell Computers Corporation Ltd,55920C
Gloucester City Council,23UE,Business Transformation & Tech,RT700,Computer Hardware Maintenance,5426,Dell Lattitude,02/09/2015,405354,523.95,NET,Dell Computers Corporation Ltd,55920C
Gloucester City Council,23UE,REDACTED,REDACTED,REDACTED,REDACTED,REDACTED,02/09/2015,REDACTED,1980,NET,REDACTED,REDACTED
Gloucester City Council,23UE,Cemeteries,HC300,Routine R And M - Vehicles,4011,SERVICE,02/09/2015,407154,47,NET,Garden Machinery Gloucester,55641K
Gloucester City Council,23UE,Civica Contract Revs & Bens,RT250,Contracted Services,6970,PENSION MAY 2015,02/09/2015,407197,11224.51,NET,Civica Uk Ltd,10841X
Gloucester City Council,23UE,Civica Contract Revs & Bens,RT250,Contracted Services,6970,PENSIONS JULY 2015,02/09/2015,407199,11252.4,NET,Civica Uk Ltd,10841X
Gloucester City Council,23UE,Civica Contract Revs & Bens,RT250,Contracted Services,6970,PENSIONS JUNE 2015,02/09/2015,407198,11389.28,NET,Civica Uk Ltd,10841X
Gloucester City Council,23UE,Civica Contract Revs & Bens,RT250,Contracted Services,6970,REVS & BENS,02/09/2015,407187,137322.7,NET,Civica Uk Ltd,10841X
Gloucester City Council,23UE,Civic Admin And Hospitality,RC210,Other Minor Supplies Services,5590,FRAMING,02/09/2015,407200,170,NET,Geoff C Cook Picture Framing,58727U
Gloucester City Council,23UE,Civica It Contract,RT270,Contracted Services,6970,IT SERVICES,02/09/2015,407188,47916.67,NET,Civica Uk Ltd,10841X
Gloucester City Council,23UE,Civica It Contract,RT270,Contracted Services,6970,PENSION JULY 2015,02/09/2015,407196,697.87,NET,Civica Uk Ltd,10841X
Gloucester City Council,23UE,Civica It Contract,RT270,Contracted Services,6970,PENSION JUNE 2015,02/09/2015,407195,697.87,NET,Civica Uk Ltd,10841X
Gloucester City Council,23UE,Civica It Contract,RT270,Contracted Services,6970,PENSION MAY 2015,02/09/2015,407194,708.21,NET,Civica Uk Ltd,10841X
Gloucester City Council,23UE,Client Revs & Bens Contract,RT240,Computer Hardware Maintenance,5426,Wireless Keyboard & Mouse Set,02/09/2015,406491,71.96,NET,Dell Computers Corporation Ltd,55920C
Gloucester City Council,23UE,Client Revs & Bens Contract,RT240,Fees For Services Received,5350,bailiff warrants,02/09/2015,407172,49.5,NET,Assevarate Ltd,11749A
Gloucester City Council,23UE,Community Safety Projects,FP500,Basic Pay - Temporary Staff,2751,temporary staff w/e 14/8/15,02/09/2015,406970,441.21,NET,Travail Employment Ltd,49371W
Gloucester City Council,23UE,Countryside Unit,LP201,Maint Of Grounds - General,3030,TREE WORK,02/09/2015,407151,480,NET,Jpu Services Ltd,11056K
Gloucester City Council,23UE,Countryside Unit,LP201,Maint Of Grounds - General,3030,wheelbarrows,02/09/2015,407175,76.65,NET,Screwfix Direct,54672H
Gloucester City Council,23UE,Countryside Unit,LP201,Oil,4013,FUEL,02/09/2015,407158,12,NET,Hobbs Bros Ltd,05942J
Gloucester City Council,23UE,Countryside Unit,LP201,Oil,4013,FUEL,02/09/2015,407159,42,NET,Hobbs Bros Ltd,05942J
Gloucester City Council,23UE,Crematorium,HC200,Repair/Maint Of Fixed Plant,3006,SERVICE,02/09/2015,407139,1306.96,NET,Facultatieve Technologies Ltd,51210H
Gloucester City Council,23UE,Development Management,PT200,Advertising And Publicity,5702,ADVERT 27/08/15,02/09/2015,407201,262.94,NET,Local World Ltd,08556P
Gloucester City Council,23UE,REDACTED,REDACTED,REDACTED,REDACTED,REDACTED,02/09/2015,REDACTED,495,NET,REDACTED,REDACTED
Gloucester City Council,23UE,Gloucester Guildhall,LA100,Hire Of Equipment,5020,HILLFIELD GDNS,02/09/2015,406855,500,NET,Abbey Loos Limited,10787B
Gloucester City Council,23UE,Guildhall Bar And Caf�,LA210,Catering Provisions -Food,5110,FOOD,02/09/2015,407141,4.6,NET,Total Produce Gloucester,12645E
Gloucester City Council,23UE,Guildhall Bar And Caf�,LA210,Catering Provisions -Food,5110,FOOD,02/09/2015,407143,99,NET,Woodward Foodservice,10714F
Gloucester City Council,23UE,Guildhall Bar And Caf�,LA210,Catering Provisions -Food,5110,FOOD,02/09/2015,407144,79.14,NET,Woodward Foodservice,10714F
Gloucester City Council,23UE,Guildhall Bar And Caf�,LA210,Catering Provisions -Food,5110,FOOD,02/09/2015,407148,4.6,NET,Total Produce Gloucester,12645E
Gloucester City Council,23UE,Guildhall Bar And Caf�,LA210,Catering Provisions -Food,5110,FOOD,02/09/2015,407153,4.6,NET,Total Produce Gloucester,12645E
Gloucester City Council,23UE,Guildhall Bar And Caf�,LA210,Catering Provisions -Food,5110,FOOD,02/09/2015,407155,4.6,NET,Total Produce Gloucester,12645E
Gloucester City Council,23UE,Guildhall Bar And Caf�,LA210,Catering Provisions -Food,5110,FOOD,02/09/2015,407156,4.6,NET,Total Produce Gloucester,12645E
Gloucester City Council,23UE,Guildhall Bar And Caf�,LA210,Catering Provisions -Food,5110,FOOD,02/09/2015,407157,4.6,NET,Total Produce Gloucester,12645E
Gloucester City Council,23UE,Guildhall Bar And Caf�,LA210,Catering Provisions -Food,5110,FOOD,02/09/2015,407161,63,NET,Winstones Ice Cream Ltd,56347D
Gloucester City Council,23UE,Guildhall Bar And Caf�,LA210,Catering Provisions -Food,5110,FOOD,02/09/2015,407206,27.7,NET,Janes Pantry,24500W
Gloucester City Council,23UE,Guildhall Bar And Caf�,LA210,Hire Of Equipment,5020,TUMBLERS,02/09/2015,407140,230,NET,Gerry Dance Disposables Ltd,54579Y
Gloucester City Council,23UE,Guildhall Events,LA200,Fees For Services Received,5350,FEB/MAR15 Guildhall brochure,02/09/2015,407173,460,NET,Glide Media,58829J
Gloucester City Council,23UE,Investment Property,RB500,General Repair/Maint Buildings,3000,JULY 2015,02/09/2015,407033,11234.05,NET,Rf Gardiner Limited,12299B
Gloucester City Council,23UE,Off Street Car Parks,PP110,Rents,3200,Kings Walk car park rent SEP-DEC15,02/09/2015,407171,46250,NET,Colliers International,15540S
Gloucester City Council,23UE,REDACTED,REDACTED,REDACTED,REDACTED,REDACTED,02/09/2015,REDACTED,90,CAP,REDACTED,REDACTED
Gloucester City Council,23UE,Armscroft Park Flood Mit S106,LY153,Contract Payments,0020,Armscroft Park works,03/09/2015,406766,1325,CAP,Greenfields Garden Services Ltd,48130G
Gloucester City Council,23UE,Business Transformation & Tech,RT700,Computer Software <5000,5425,Annual Fee 2015/16,03/09/2015,406325,600,NET,Ncc Services Ltd,03054V
Gloucester City Council,23UE,Business Transformation & Tech,RT700,Computer Software <5000,5425,Annual Maintenance - Xcel Uploader,03/09/2015,405653,330.13,NET,Advanced Business Solutions,06072N
Gloucester City Council,23UE,Business Transformation & Tech,RT700,Computer Software <5000,5425,Auto Created Site - Renewal,03/09/2015,406377,375,NET,System Force I.T.,08693C
Gloucester City Council,23UE,Business Transformation & Tech,RT700,Computer Software Maintenance,5427,Annual Maintenance - e-Procurement,03/09/2015,405654,1100.43,NET,Advanced Business Solutions,06072N
Gloucester City Council,23UE,Business Transformation & Tech,RT700,Internet Service Provider Fees,5429,ACCT 291749,03/09/2015,406255,155.75,NET,Virgin Media Business,01869B
Gloucester City Council,23UE,Business Transformation & Tech,RT700,Licences,5703,Laserform Licence Renewal,03/09/2015,405688,268.58,NET,Advanced Legal Solutions Ltd,09299B
Gloucester City Council,23UE,Business Transformation & Tech,RT700,Telephones And Fax,5410,JULY 2015,03/09/2015,406183,2116.8,NET,Everything Everywhere Ltd (T-Mobile),57543S
Gloucester City Council,23UE,Business Transformation & Tech,RT700,Telephones And Fax,5410,JULY 2015,03/09/2015,406240,3948.11,NET,Gamma Business Communications,10260A
Gloucester City Council,23UE,Business Transformation & Tech,RT700,Telephones And Fax,5410,JULY 2015,03/09/2015,406245,2190.64,NET,Gamma Business Communications,10260A
Gloucester City Council,23UE,Business Transformation & Tech,RT700,Telephones And Fax,5410,Monthly Charges August 2015,03/09/2015,406393,51.51,NET,Everything Everywhere Ltd (T-Mobile),57543S
Gloucester City Council,23UE,Business Transformation & Tech,RT700,Telephones And Fax,5410,Usage Charges,03/09/2015,406391,2197.94,NET,Bt Payment Services Ltd,56283E
Gloucester City Council,23UE,Civica Fod Contract,RT260,Fees For Services Received,5350,FOD,03/09/2015,407186,7100.1,NET,Civica Uk Ltd,10841X
Gloucester City Council,23UE,Community Safety Projects,FP500,Basic Pay - Temporary Staff,2751,temporary staff W/E 21/08/15,03/09/2015,407142,547.94,NET,Travail Employment Ltd,49371W
Gloucester City Council,23UE,Contaminated Land,HE301,Fees For Services Received,5350,CONTAMINATED LAND,03/09/2015,407190,2565.92,NET,Bromsgrove District Council,15037G
Gloucester City Council,23UE,Council Streetcare Team,HI101,Maint Of Grounds - General,3030,SIGNS,03/09/2015,407149,192.3,NET,Severn Signs Ltd,49841D
Gloucester City Council,23UE,Countryside Unit,LP201,Oil,4013,FUEL,03/09/2015,407181,17.4,NET,Hobbs Bros Ltd,05942J
Gloucester City Council,23UE,Guildhall Bar And Caf�,LA210,Catering Provisions -Liquor,5111,SEPT 2015,03/09/2015,407182,10.54,NET,Boc Ltd,59172L
Gloucester City Council,23UE,REDACTED,REDACTED,REDACTED,REDACTED,REDACTED,03/09/2015,REDACTED,489.44,NET,REDACTED,REDACTED
Gloucester City Council,23UE,REDACTED,REDACTED,REDACTED,REDACTED,REDACTED,03/09/2015,REDACTED,272.72,NET,REDACTED,REDACTED
Gloucester City Council,23UE,REDACTED,REDACTED,REDACTED,REDACTED,REDACTED,03/09/2015,REDACTED,350,NET,REDACTED,REDACTED
Gloucester City Council,23UE,REDACTED,REDACTED,REDACTED,REDACTED,REDACTED,03/09/2015,REDACTED,300,NET,REDACTED,REDACTED
Gloucester City Council,23UE,Legal Services,RS200,Contracted Services,6970,One Legal - Set up costs 15/16,03/09/2015,405882,73651.27,NET,Tewkesbury Borough Council,43800C
Gloucester City Council,23UE,Legal Services,RS200,Fees For Services Received,5350,One Legal - Set up costs 15/16,03/09/2015,405882,1745.24,NET,Tewkesbury Borough Council,43800C
Gloucester City Council,23UE,REDACTED,REDACTED,REDACTED,REDACTED,REDACTED,03/09/2015,REDACTED,850,NET,REDACTED,REDACTED
Gloucester City Council,23UE,Nms Contract,HI102,Additional Non-Tender Items,6973,LABELS,03/09/2015,407092,643,NET,Eurolabel,10252Z
Gloucester City Council,23UE,Printing,RP103,Printing,5300,PRINTING,03/09/2015,407202,532.44,NET,Alpha Colour Printers Ltd,00945B
Gloucester City Council,23UE,Rugby World Cup,LT450,Advertising And Publicity,5702,Sporting Legacy 2015,03/09/2015,405486,10000,NET,Local World Ltd,08556P
Gloucester City Council,23UE,Tourism Marketing,LT100,Exhibits And Collections,5038,BADGES,03/09/2015,407006,7.4,NET,Badgemaster Ltd,58525J
Gloucester City Council,23UE,Vehicles,RS140,Fuel,4012,FUEL,03/09/2015,407109,31.08,NET,Allstar Business Solutions Ltd (Arval),06594A
Gloucester City Council,23UE,Asset Management,RS300,Basic Pay - Temporary Staff,2751,consultancy services AUG15,04/09/2015,407266,6250,NET,Ardley Associates,09369F
Gloucester City Council,23UE,Blackfriars,LA609,Fees For Services Received,5350,100 chair covers,04/09/2015,407280,225,NET,Usha Karavadra,15823A
Gloucester City Council,23UE,Cemeteries,HC300,Basic Pay - Temporary Staff,2751,temp staff w/e 23/8/15,04/09/2015,407168,439.88,NET,Premiere Employment Group Ltd,55468Z
Gloucester City Council,23UE,Cemeteries,HC300,Basic Pay - Temporary Staff,2751,temp staff w/e 23/8/15,04/09/2015,407169,439.88,NET,Premiere Employment Group Ltd,55468Z
Gloucester City Council,23UE,Client Revs & Bens Contract,RT240,Bailiffs Fees,5368,recharge for Dukes direct payments,04/09/2015,407265,876.17,NET,Civica Uk Ltd,10841X
Gloucester City Council,23UE,Contact Centre,RB300,Basic Pay -Admin /Prof Staff,2601,Temporary staff w/e 30/8/15,04/09/2015,407267,655,NET,Morgan Hunt Uk Ltd,04451S
Gloucester City Council,23UE,Contact Centre,RB300,Stationery,5302,paper,04/09/2015,407263,171.75,NET,Premier Paper Group Ltd,09166Y
Gloucester City Council,23UE,Corporate Reporting /Financing,RC504,Audit Fees,5383,2nd installment of 2015/16 audit fee,04/09/2015,407269,17993.25,NET,Kpmg,06498X
Gloucester City Council,23UE,Countryside Unit,LP201,Routine R And M - Vehicles,4011,spare parts,04/09/2015,407277,35.8,NET,A C Belting Ltd,00250X
Gloucester City Council,23UE,Disabled Facilities Grants,CY013,Disabled Facility Grants,0074,DISABLED FACILITIES GRANT,04/09/2015,407003,2355.54,CAP,Snape Construction Ltd,40958T
Gloucester City Council,23UE,Environmental Planning,LM340,Fees For Services Received,5350,SUDS seminar 2015,04/09/2015,407268,250,NET,Robert Bray Associates Ltd,10605M
Gloucester City Council,23UE,General Drainage Works,PY241,Contract Payments,0020,St Peters School Bund,04/09/2015,407272,3250,CAP,Rj Contracting (Environmental) Ltd,07429H
Gloucester City Council,23UE,Grants To Voluntary Sector,FG100,Members Allocation Fund,7100F,PICNIC TABLE,04/09/2015,407099,703,NET,Centrewire Ltd,54156P
Gloucester City Council,23UE,REDACTED,REDACTED,REDACTED,REDACTED,REDACTED,04/09/2015,REDACTED,225.25,NET,REDACTED,REDACTED
Gloucester City Council,23UE,REDACTED,REDACTED,REDACTED,REDACTED,REDACTED,04/09/2015,REDACTED,249.75,NET,REDACTED,REDACTED
Gloucester City Council,23UE,REDACTED,REDACTED,REDACTED,REDACTED,REDACTED,04/09/2015,REDACTED,50,NET,REDACTED,REDACTED
Gloucester City Council,23UE,REDACTED,REDACTED,REDACTED,REDACTED,REDACTED,04/09/2015,REDACTED,50,NET,REDACTED,REDACTED
Gloucester City Council,23UE,REDACTED,REDACTED,REDACTED,REDACTED,REDACTED,04/09/2015,REDACTED,50,NET,REDACTED,REDACTED
Gloucester City Council,23UE,REDACTED,REDACTED,REDACTED,REDACTED,REDACTED,04/09/2015,REDACTED,245.5,NET,REDACTED,REDACTED
Gloucester City Council,23UE,REDACTED,REDACTED,REDACTED,REDACTED,REDACTED,04/09/2015,REDACTED,261.65,NET,REDACTED,REDACTED
Gloucester City Council,23UE,Homelessness,CH120,Rent In Advance,5516,REDACTED,04/09/2015,407281,489.44,NET,S & Sl Sadler,11856T
Gloucester City Council,23UE,REDACTED,REDACTED,REDACTED,REDACTED,REDACTED,04/09/2015,REDACTED,368.2,NET,REDACTED,REDACTED
Gloucester City Council,23UE,Homelessness Prevention,CH122,Fees For Services Received,5350,REDACTED,04/09/2015,407281,530,NET,S & Sl Sadler,11856T
Gloucester City Council,23UE,REDACTED,REDACTED,REDACTED,REDACTED,REDACTED,04/09/2015,REDACTED,400,NET,REDACTED,REDACTED
Gloucester City Council,23UE,REDACTED,REDACTED,REDACTED,REDACTED,REDACTED,04/09/2015,REDACTED,400,NET,REDACTED,REDACTED
Gloucester City Council,23UE,REDACTED,REDACTED,REDACTED,REDACTED,REDACTED,04/09/2015,REDACTED,430,CAP,REDACTED,REDACTED
Gloucester City Council,23UE,Organisational Health,RC160,Fees For Services Received,5350,Nurse Appointments,04/09/2015,404388,224,NET,Gloucestershire County Council,18650D
Gloucester City Council,23UE,Organisational Health,RC160,Fees For Services Received,5350,Physician Appointments,04/09/2015,404389,440,NET,Gloucestershire County Council,18650D
Gloucester City Council,23UE,Retail Market - Landlord,HM300,Trade Refuse Collection,3630,foode waste AUG15,04/09/2015,407274,120,NET,B & S Pointon Ltd,06253G
Gloucester City Council,23UE,Rugby World Cup,LT450,Fees For Services Received,5350,sports event licence,04/09/2015,407008,178.59,NET,Prs For Music,05077M
Gloucester City Council,23UE,Shopmobility,PE200,Cleaning Materials,3600,SEPT 2015,04/09/2015,407091,7.11,NET,Ocs Group Uk Limited T/A Cannon,06506A
Gloucester City Council,23UE,Ugly Structures,GY010,Contract Payments,0020,Kings Walk sample metal panel fixing,04/09/2015,407271,325,CAP,Peter Goodhind Associates Ltd,18890E
Gloucester City Council,23UE,Aspire Admin Charges,LC105,Contracted Services,6970,SEP15 management fees,07/09/2015,407325,54792.25,NET,Aspire Sports & Cultural Trust,08135V
Gloucester City Council,23UE,Aspire Admin Charges,LC105,Fees For Services Received,5350,JUL15 staff memberships,07/09/2015,407350,493,NET,Aspire Sports & Cultural Trust,08135V
Gloucester City Council,23UE,Blackfriars,LA609,Contract Cleaning,3620,BLACKFRIARS,07/09/2015,407150,525,NET,Into Cleaning,14609P
Gloucester City Council,23UE,Blackfriars Catering,LA220,Catering Provisions -Liquor,5111,drinks,07/09/2015,407347,295.63,NET,Cellar Supplies Cheltenham Ltd,01563L
Gloucester City Council,23UE,Blackfriars Catering,LA220,Catering Provisions -Liquor,5111,drinks,07/09/2015,407348,70.97,NET,Cellar Supplies Cheltenham Ltd,01563L
Gloucester City Council,23UE,Blackfriars Catering,LA220,Catering Provisions -Liquor,5111,Real Ale,07/09/2015,407346,142,NET,Gloucester Brewery,13373F
Gloucester City Council,23UE,Cemeteries,HC300,Basic Pay - Temporary Staff,2751,temporary staff w/e 16/8/15,07/09/2015,407352,346.04,NET,Premiere Employment Group Ltd,55468Z
Gloucester City Council,23UE,Cemeteries,HC300,Operational Materials,5070,ENGINE COVERS,07/09/2015,407366,72.4,NET,Garden Machinery Gloucester,55641K
Gloucester City Council,23UE,City Museum And Art Gallery,LM200,Publications For Sale,5064,goods for resale,07/09/2015,407333,76,NET,Rough And Tumble,13829G
Gloucester City Council,23UE,Client Revs & Bens Contract,RT240,Bailiffs Fees,5368,VAT on fees,07/09/2015,407342,0,NET,Bristow & Sutor,05450M
Gloucester City Council,23UE,Client Revs & Bens Contract,RT240,Bailiffs Fees,5368,VAT on fees & fees paid direct,07/09/2015,407343,87.79,NET,Bristow & Sutor,05450M
Gloucester City Council,23UE,Contact Centre,RB300,Stationery,5302,stationery,07/09/2015,407321,45.5,NET,Lyreco Uk Ltd,11746G
Gloucester City Council,23UE,Environmental Planning,LM340,Fees For Services Received,5350,FLAIL MOWING DANIELS BROOK,07/09/2015,407045,1840,NET,Lower Severn Drainage Board,04918R
Gloucester City Council,23UE,Environmental Planning,LM340,Fees For Services Received,5350,HER ASSISTANT,07/09/2015,407367,100,NET,Cifa,53466U
Gloucester City Council,23UE,Guildhall Bar And Caf�,LA210,Catering Provisions -Food,5110,coffee,07/09/2015,407345,161.4,NET,Ethical Addictions Ltd,11654N
Gloucester City Council,23UE,Guildhall Bar And Caf�,LA210,Catering Provisions -Food,5110,food,07/09/2015,407335,102.02,NET,Woodward Foodservice,10714F
Gloucester City Council,23UE,Guildhall Bar And Caf�,LA210,Catering Provisions -Liquor,5111,drinks,07/09/2015,407349,736.5,NET,Cellar Supplies Cheltenham Ltd,01563L
Gloucester City Council,23UE,Guildhall Bar And Caf�,LA210,Hire Of Equipment,5020,AUG15 stock audit,07/09/2015,407326,90,NET,Fea Audits,08888J
Gloucester City Council,23UE,REDACTED,REDACTED,REDACTED,REDACTED,REDACTED,07/09/2015,REDACTED,100,NET,REDACTED,REDACTED
Gloucester City Council,23UE,REDACTED,REDACTED,REDACTED,REDACTED,REDACTED,07/09/2015,REDACTED,172.8,NET,REDACTED,REDACTED
Gloucester City Council,23UE,REDACTED,REDACTED,REDACTED,REDACTED,REDACTED,07/09/2015,REDACTED,1000,NET,REDACTED,REDACTED
Gloucester City Council,23UE,REDACTED,REDACTED,REDACTED,REDACTED,REDACTED,07/09/2015,REDACTED,72,NET,REDACTED,REDACTED
Gloucester City Council,23UE,REDACTED,REDACTED,REDACTED,REDACTED,REDACTED,07/09/2015,REDACTED,600,NET,REDACTED,REDACTED
Gloucester City Council,23UE,Homelessness,CH120,Basic Pay - Temporary Staff,2751,Temporary staff w/e 30/8/15,07/09/2015,407262,810.75,NET,James Andrews Recruitment Solutions,13636W
Gloucester City Council,23UE,Homelessness,CH120,Rent In Advance,5516,REDACTED,07/09/2015,407359,576.92,NET,Your Property People,10964D
Gloucester City Council,23UE,REDACTED,REDACTED,REDACTED,REDACTED,REDACTED,07/09/2015,REDACTED,489.44,NET,REDACTED,REDACTED
Gloucester City Council,23UE,Homelessness Prevention,CH122,Fees For Services Received,5350,REDACTED,07/09/2015,407359,640,NET,Your Property People,10964D
Gloucester City Council,23UE,REDACTED,REDACTED,REDACTED,REDACTED,REDACTED,07/09/2015,REDACTED,560,NET,REDACTED,REDACTED
Gloucester City Council,23UE,Human Resources,EH100,Fees For Services Received,5350,PAYROLL JULY 2015,07/09/2015,406187,2910.44,NET,Gloucestershire County Council,18650D
Gloucester City Council,23UE,Investment Property,RB500,General Repair/Maint Buildings,3000,geoclima chiller repairs,07/09/2015,407264,754.98,NET,Cooltherm,06087Z
Gloucester City Council,23UE,Investment Property,RB500,Rents,3200,rent for quarter 29/9/155,07/09/2015,407273,5725,NET,P W Fido & Associates,01210A
Gloucester City Council,23UE,Investment Property,RB500,Repair/Maint Of Fixed Plant,3006,NORTH WAREHOUSE,07/09/2015,407360,1746.51,NET,Axiom Building Services,14908A
Gloucester City Council,23UE,National Express,LT105,Equipment For Sale,5050,ticket sales August 2015,07/09/2015,407322,15286.65,NET,National Express Ltd,31455K
Gloucester City Council,23UE,National Express,LT105,Sale Of Goods And Services,9230,ticket sales August 2015,07/09/2015,407322,-1458.3,NET,National Express Ltd,31455K
Gloucester City Council,23UE,Organisational Health,RC160,Fees For Services Received,5350,OH services,07/09/2015,407351,183.75,NET,Industrial Medical & Safety Services Ltd,10668L
Gloucester City Council,23UE,Shopmobility,PE200,Office Equipment <5000,5010,SHOPMOBILITY,07/09/2015,407160,150,NET,Severnside Security Ltd,14661M
Gloucester City Council,23UE,The Arbor,HC501,Catering Provisions -Food,5110,FOOD,07/09/2015,407205,136.41,NET,Janes Pantry,24500W
Gloucester City Council,23UE,The Arbor,HC501,Cleaning Materials,3600,Cleaning Materials,07/09/2015,404329,286.05,NET,Core Hygiene Ltd,03885P
Gloucester City Council,23UE,REDACTED,REDACTED,REDACTED,REDACTED,REDACTED,07/09/2015,REDACTED,12847,CAP,REDACTED,REDACTED
Gloucester City Council,23UE,Training Schemes,ET100,Vocational Training,2970,NVQ asessments,07/09/2015,407330,940,NET,The Gold Standard,56141C
Gloucester City Council,23UE,Tree Planting Grant Funded,LY150,Contract Payments,0020,Netheridge Wood,07/09/2015,402575,340,CAP,Greenfields Garden Services Ltd,48130G
Gloucester City Council,23UE,REDACTED,REDACTED,REDACTED,REDACTED,REDACTED,08/09/2015,REDACTED,35,NET,REDACTED,REDACTED
Gloucester City Council,23UE,REDACTED,REDACTED,REDACTED,REDACTED,REDACTED,08/09/2015,REDACTED,45,NET,REDACTED,REDACTED
Gloucester City Council,23UE,Civica Admin Charges,RT105,Fees For Services Received,5350,CHD subscription advance,08/09/2015,407420,4,NET,Companies House,58954E
Gloucester City Council,23UE,Civica Admin Charges,RT105,Fees For Services Received,5350,CHD subscription advance,08/09/2015,407421,4,NET,Companies House,58954E
Gloucester City Council,23UE,Civic Admin And Hospitality,RC210,Muniments And Regalia,5033,PENDANT REPAIR,08/09/2015,407439,507.97,NET,Thomas Fattorini Ltd,14975J
Gloucester City Council,23UE,REDACTED,REDACTED,REDACTED,REDACTED,REDACTED,08/09/2015,REDACTED,545,NET,REDACTED,REDACTED
Gloucester City Council,23UE,Council Streetcare Team,HI101,General Repair/Maint Buildings,3000,PAINT,08/09/2015,407424,195.23,NET,Ppg Architectural Coatings Uk Limited,04709C
Gloucester City Council,23UE,Development Management,PT200,Advertising And Publicity,5702,adverts 30/07/15,08/09/2015,406820,146.08,NET,Local World Ltd,08556P
Gloucester City Council,23UE,Environmental Planning,LM340,Operational Materials,5070,MILTON AVE,08/09/2015,407427,280,NET,Gloucestershire Wildlife Management,49628F
Gloucester City Council,23UE,Equalities,EH102,Fees For Services Received,5350,PERF 23/05/15,08/09/2015,407437,50,NET,Marketing Gloucester Ltd,08925E
Gloucester City Council,23UE,REDACTED,REDACTED,REDACTED,REDACTED,REDACTED,08/09/2015,REDACTED,47,NET,REDACTED,REDACTED
Gloucester City Council,23UE,Gloucester Guildhall,LA100,Cleaning Materials,3600,NVIROCLEAN FOR WATERLESS URINALS,08/09/2015,394357,98,NET,Gentworks Ltd,10388W
Gloucester City Council,23UE,Gloucester Guildhall,LA100,Licences,5703,LICENCE 2015/16,08/09/2015,406761,150,NET,Ofcom,02769C
Gloucester City Council,23UE,Grants To Voluntary Sector,FG100,Sla'S,7100B,GLOUCESTER LAW CENTRE,08/09/2015,407324,18856,NET,Gloucester Law Centre,18157R
Gloucester City Council,23UE,REDACTED,REDACTED,REDACTED,REDACTED,REDACTED,08/09/2015,REDACTED,551,NET,REDACTED,REDACTED
Gloucester City Council,23UE,Grants To Voluntary Sector,FG100,Sla'S,7100B,CAB,08/09/2015,407327,15432,NET,Gloucester & District Citizens Advice Bureau,07709Y
Gloucester City Council,23UE,REDACTED,REDACTED,REDACTED,REDACTED,REDACTED,08/09/2015,REDACTED,90,NET,REDACTED,REDACTED
Gloucester City Council,23UE,REDACTED,REDACTED,REDACTED,REDACTED,REDACTED,08/09/2015,REDACTED,111.67,NET,REDACTED,REDACTED
Gloucester City Council,23UE,REDACTED,REDACTED,REDACTED,REDACTED,REDACTED,08/09/2015,REDACTED,105,NET,REDACTED,REDACTED
Gloucester City Council,23UE,REDACTED,REDACTED,REDACTED,REDACTED,REDACTED,08/09/2015,REDACTED,266.77,NET,REDACTED,REDACTED
Gloucester City Council,23UE,REDACTED,REDACTED,REDACTED,REDACTED,REDACTED,08/09/2015,REDACTED,100,NET,REDACTED,REDACTED
Gloucester City Council,23UE,REDACTED,REDACTED,REDACTED,REDACTED,REDACTED,08/09/2015,REDACTED,160,NET,REDACTED,REDACTED
Gloucester City Council,23UE,REDACTED,REDACTED,REDACTED,REDACTED,REDACTED,08/09/2015,REDACTED,160,NET,REDACTED,REDACTED
Gloucester City Council,23UE,Hackney Carriages,HL100,Fees For Services Received,5350,DVLA electronic checks,08/09/2015,407415,79.75,NET,Intelligent Data Systems (Uk) Ltd,11067G
Gloucester City Council,23UE,Hmo Licences,HE520,Other Minor Supplies Services,5590,DFG FORMS SUITE,08/09/2015,407443,99,NET,Ferret Information Systems Ltd,15035L
Gloucester City Council,23UE,Hmo Licences,HE520,Other Minor Supplies Services,5590,RENOVATOR PC RENEWAL,08/09/2015,407442,190,NET,Ferret Information Systems Ltd,15035L
Gloucester City Council,23UE,Homelessness,CH120,Fees For Services Received,5350,MEDICAL REPORT,08/09/2015,407451,20.5,NET,Dr R Watkins & Partners,59237H
Gloucester City Council,23UE,Homelessness,CH120,Removal And Storage Fees,5513,MIRCHELL,08/09/2015,407434,151.88,NET,Advanced Removals & Storage Ltd,57142R
Gloucester City Council,23UE,Homelessness,CH120,Vocational Training,2970,TRAINING,08/09/2015,407455,50,NET,Gloucester Law Centre,18157R
Gloucester City Council,23UE,Homelessness Prevention,CH122,Fees For Services Received,5350,MEDICAL REPORT,08/09/2015,407448,20.5,NET,Dr R Watkins & Partners,59237H
Gloucester City Council,23UE,REDACTED,REDACTED,REDACTED,REDACTED,REDACTED,08/09/2015,REDACTED,280,NET,REDACTED,REDACTED
Gloucester City Council,23UE,Housing Strategy & Enabling,CH110,Fees For Services Received,5350,ADVERT,08/09/2015,407433,1128,NET,Ocean Media Group Ltd,05628U
Gloucester City Council,23UE,Investment Property,RB500,Repair/Maint Of Fixed Plant,3006,BLACKFRIARS,08/09/2015,407364,326.95,NET,Axiom Building Services,14908A
Gloucester City Council,23UE,Investment Property,RB500,Repair/Maint Of Fixed Plant,3006,HKP,08/09/2015,407363,650,NET,Axiom Building Services,14908A
Gloucester City Council,23UE,Investment Property,RB500,Repair/Maint Of Fixed Plant,3006,NORTH WAREHOUSE,08/09/2015,407365,125.6,NET,Axiom Building Services,14908A
Gloucester City Council,23UE,Investment Property,RB500,Repair/Maint Of Fixed Plant,3006,THE ARBOR,08/09/2015,407362,201.75,NET,Axiom Building Services,14908A
Gloucester City Council,23UE,Rehousing,CH111,Fees For Services Received,5350,MEDICAL REPORT,08/09/2015,407454,20.5,NET,Rosebank Health,03041E
Gloucester City Council,23UE,Rehousing,CH111,Fees For Services Received,5350,MEDICAL REPORT,08/09/2015,407452,20.5,NET,Bartongate Surgery,05680S
Gloucester City Council,23UE,Rehousing,CH111,Fees For Services Received,5350,MEDICAL REPORT,08/09/2015,407450,20.5,NET,Saintbridge Surgery,58374F
Gloucester City Council,23UE,Rehousing,CH111,Fees For Services Received,5350,MEDICAL REPORT,08/09/2015,407449,20.5,NET,Hadwen Medical Practice,59727U
Gloucester City Council,23UE,Rehousing,CH111,Fees For Services Received,5350,MEDICAL REPORT,08/09/2015,407453,20.5,NET,Hadwen Medical Practice,59727U
Gloucester City Council,23UE,Retail Market - Landlord,HM300,Operational Equipment <5000,5012,ladder,08/09/2015,407176,49.99,NET,Screwfix Direct,54672H
Gloucester City Council,23UE,Robinswoodhill Trading Account,LP203,Maint Of Grounds - General,3030,CATTLE,08/09/2015,407446,3357.82,NET,Moor Meals,15816X
Gloucester City Council,23UE,Tic Trading,LT110,Materials For Sale,5080,Scrumpty badges,08/09/2015,407416,200,NET,Marketing Gloucester Ltd,08925E
Gloucester City Council,23UE,Tic Trading,LT110,Publications For Sale,5064,books & maps for resale,08/09/2015,407417,394.06,NET,David Whyman Map Sales,02653Z
Gloucester City Council,23UE,Blackfriars Catering,LA220,Catering Provisions -Liquor,5111,DRINK,09/09/2015,407528,915.55,NET,Cellar Supplies Cheltenham Ltd,01563L
Gloucester City Council,23UE,Blackfriars Catering,LA220,Catering Provisions -Liquor,5111,DRINK,09/09/2015,407529,52.99,NET,Cellar Supplies Cheltenham Ltd,01563L
Gloucester City Council,23UE,Blackfriars Catering,LA220,Catering Provisions -Liquor,5111,DRINK,09/09/2015,407530,38.99,NET,Cellar Supplies Cheltenham Ltd,01563L
Gloucester City Council,23UE,Blackfriars Catering,LA220,Catering Provisions -Liquor,5111,DRINK,09/09/2015,407531,26.94,NET,Cellar Supplies Cheltenham Ltd,01563L
Gloucester City Council,23UE,Cemeteries,HC300,Operational Materials,5070,R Clips,09/09/2015,407339,8.6,NET,Teleshore (Uk) Ltd,56819G
Gloucester City Council,23UE,Civica Contract Revs & Bens,RT250,Contracted Services,6970,REVS & BENS DEC 2015,09/09/2015,407533,137322.7,NET,Civica Uk Ltd,10841X
Gloucester City Council,23UE,Civica Contract Revs & Bens,RT250,Contracted Services,6970,REVS & BENS NOV 2015,09/09/2015,407532,137322.7,NET,Civica Uk Ltd,10841X
Gloucester City Council,23UE,Civic Admin And Hospitality,RC210,Muniments And Regalia,5033,ROBES,09/09/2015,407550,100,NET,Michaels Civic Robes,03293Y
Gloucester City Council,23UE,Contact Centre,RB300,Clothing,5200,CLOTHING,09/09/2015,407523,40.2,NET,Meltemi Company Clothing Limited,54572N
Gloucester City Council,23UE,Countryside Unit,LP201,Clothing,5200,goods,09/09/2015,407341,8.33,NET,Countrywide Farmers,55687J
Gloucester City Council,23UE,Countryside Unit,LP201,Livestock Foodstuff,5841,goods,09/09/2015,407341,46.49,NET,Countrywide Farmers,55687J
Gloucester City Council,23UE,Economic Development,FP300,Business Grant,7116,DAISY LEASED LINE,09/09/2015,407542,2400,NET,Nomis Connections Ltd,15813D
Gloucester City Council,23UE,Environmental Planning,LM340,Subscriptions,5600,HER PROJECT,09/09/2015,407441,312,NET,Gloucestershire County Council,18650D
Gloucester City Council,23UE,Guildhall Events,LA200,Artists Fees,5355,perf 18/07/15,09/09/2015,407553,970,NET,Bars & Melody Ltd,15820J
Gloucester City Council,23UE,Guildhall Events,LA200,Fees For Services Received,5350,NEWSPAPERS,09/09/2015,407524,26.65,NET,W H Smith Ltd,40860M
Gloucester City Council,23UE,Homelessness,CH120,Rent In Advance,5516,housing payment,09/09/2015,407554,368.2,NET,Countrywide Lettings,13978M
Gloucester City Council,23UE,REDACTED,REDACTED,REDACTED,REDACTED,REDACTED,09/09/2015,REDACTED,272.72,NET,REDACTED,REDACTED
Gloucester City Council,23UE,REDACTED,REDACTED,REDACTED,REDACTED,REDACTED,09/09/2015,REDACTED,300,NET,REDACTED,REDACTED
Gloucester City Council,23UE,Investment Property,RB500,General Repair/Maint Buildings,3000,VISIT 14/08/15,09/09/2015,407459,421.65,NET,Adt Fire & Security Plc,54086D
Gloucester City Council,23UE,Investment Property,RB500,General Repair/Maint Buildings,3000,VISIT 14/08/15,09/09/2015,407460,399.98,NET,Adt Fire & Security Plc,54086D
Gloucester City Council,23UE,Investment Property,RB500,Repair/Maint Of Fixed Plant,3006,CITY MUSEUM,09/09/2015,407361,93.5,NET,Axiom Building Services,14908A
Gloucester City Council,23UE,Kings Quarter,RY146,Contract Payments,0020,KINGS SQUARE,09/09/2015,407549,50,CAP,Mpl Wrought Iron Llp,03907P
Gloucester City Council,23UE,Legal Services,RS200,Fees For Services Received,5350,One Legal costs,09/09/2015,407276,5101.39,NET,Tewkesbury Borough Council,43800C
Gloucester City Council,23UE,Lighting,GY009,Contract Payments,0020,ST MARYS CHURCH,09/09/2015,407430,8953.81,CAP,Scs Installations Ltd,10383G
Gloucester City Council,23UE,Managing Director,RE100,Subscriptions,5600,MJ,09/09/2015,407540,140,NET,Hemming Group Ltd,48192H
Gloucester City Council,23UE,Retail Market - Landlord,HM300,Operational Equipment <5000,5012,LAMPS,09/09/2015,407545,40.39,NET,City Electrical Factors,09325C
Gloucester City Council,23UE,Retail Market - Landlord,HM300,Service Charges,3020,MARKET HALL,09/09/2015,407016,11015.5,NET,Workman Llp,11021M
Gloucester City Council,23UE,Rugby World Cup,LT450,Fees For Services Received,5350,GOLF COURSE,09/09/2015,407551,1500,NET,REDACTED,REDACTED
Gloucester City Council,23UE,Rugby World Cup,LT450,Fees For Services Received,5350,RWC FANZONE,09/09/2015,407537,15432.5,NET,Production Av Ltd,15827S
Gloucester City Council,23UE,Rugby World Cup,LT450,Fees For Services Received,5350,STONEWORK,09/09/2015,407539,15937.94,NET,Chapter Of Gloucester Cathedral,11278V
Gloucester City Council,23UE,Targeted Historic Grants,GY008,Contract Payments,0020,26 Westgate St condition survey & report,09/09/2015,406818,7500,CAP,Nick Joyce Architects Ltd,15780T
Gloucester City Council,23UE,Utilities,PT502,Electricity Supply,3110,UTILITIES TO SEPT 2015,09/09/2015,407436,73.77,NET,West Mercia Energy,11669Z
Gloucester City Council,23UE,Utilities,PT502,Gas Supply,3100,UTILITIES TO SEPT 2015,09/09/2015,407436,14059.14,NET,West Mercia Energy,11669Z
Gloucester City Council,23UE,Business Transformation & Tech,RT700,Computer Hardware <5000,5420,ACCT 513231401,10/09/2015,406154,39,NET,Virgin Media Payments Ltd,09376J
Gloucester City Council,23UE,Business Transformation & Tech,RT700,Internet Service Provider Fees,5429,ACCT 510738303 LIFT LINE,10/09/2015,406197,16.99,NET,Virgin Media Payments Ltd,09376J
Gloucester City Council,23UE,Business Transformation & Tech,RT700,Internet Service Provider Fees,5429,ACCT 510738402,10/09/2015,406198,33,NET,Virgin Media Payments Ltd,09376J
Gloucester City Council,23UE,Business Transformation & Tech,RT700,Internet Service Provider Fees,5429,ACCT 511159201,10/09/2015,406196,80,NET,Virgin Media Payments Ltd,09376J
Gloucester City Council,23UE,Client Revs & Bens Contract,RT240,Fees For Services Received,5350,TRAINING,10/09/2015,407543,1300,NET,Institute Of Money Advisors,15832Z
Gloucester City Council,23UE,Client Revs & Bens Contract,RT240,Fees For Services Received,5350,TRAINING,10/09/2015,407544,121.09,NET,Institute Of Money Advisors,15832Z
Gloucester City Council,23UE,Contact Centre,RB300,Basic Pay -Admin /Prof Staff,2601,temporary staff w/e 6/9/15,10/09/2015,407598,455,NET,Morgan Hunt Uk Ltd,04451S
Gloucester City Council,23UE,Crematorium,HC200,Fees For Services Received,5350,CREM FEES AUG 2015,10/09/2015,407606,386.16,NET,Dr R W Bell,01571P
Gloucester City Council,23UE,Crematorium,HC200,Fees For Services Received,5350,CREM FEES AUG 2015,10/09/2015,407607,716.64,NET,Dr C M Stretton,00306P
Gloucester City Council,23UE,Crematorium,HC200,Fees For Services Received,5350,CREM FEES AUG 2015,10/09/2015,407608,1015.52,NET,Dr D Martin,00890P
Gloucester City Council,23UE,Democratic Services,RS100,Vocational Training,2970,AEA certificate,10/09/2015,407599,1495,NET,Association Of Electoral Administrators,03013K
Gloucester City Council,23UE,Development Management,PT200,Microfilming / Cd-Rom Storage,5330,Archival storage,10/09/2015,407590,36.12,NET,Transmedia Technology Ltd,08635T
Gloucester City Council,23UE,REDACTED,REDACTED,REDACTED,REDACTED,REDACTED,10/09/2015,REDACTED,1290,NET,REDACTED,REDACTED
Gloucester City Council,23UE,Green Garden Waste,HI105,Basic Pay - Temporary Staff,2751,Temporary staff w/e 4/9/15,10/09/2015,407592,382.8,NET,One To One Recruitment,04752H
Gloucester City Council,23UE,Green Garden Waste,HI105,Basic Pay - Temporary Staff,2751,temporary staff w/e 4/9/15,10/09/2015,407594,451.65,NET,One To One Recruitment,04752H
Gloucester City Council,23UE,Green Garden Waste,HI105,Basic Pay - Temporary Staff,2751,Temporary staff w/e 4/9/15,10/09/2015,407595,382.8,NET,One To One Recruitment,04752H
Gloucester City Council,23UE,Green Garden Waste,HI105,Basic Pay - Temporary Staff,2751,temporary staff w/e 4/9/15,10/09/2015,407591,287.1,NET,One To One Recruitment,04752H
Gloucester City Council,23UE,Green Garden Waste,HI105,Basic Pay - Temporary Staff,2751,temporary staff w/e 4/9/15,10/09/2015,407593,379.61,NET,One To One Recruitment,04752H
Gloucester City Council,23UE,REDACTED,REDACTED,REDACTED,REDACTED,REDACTED,10/09/2015,REDACTED,459,NET,REDACTED,REDACTED
Gloucester City Council,23UE,Guildhall Sound Desks,LY059,Contract Payments,0020,Behringer X32 digital console,10/09/2015,407603,2114.04,CAP,Sse Audio Group,15768G
Gloucester City Council,23UE,Hackney Carriages,HL100,Other Minor Supplies Services,5590,PLATES,10/09/2015,407163,2119.9,NET,Mogo Uk,56615B
Gloucester City Council,23UE,Homelessness,CH120,Basic Pay - Temporary Staff,2751,Temporary staff w/e 6/9/15,10/09/2015,407586,686.44,NET,James Andrews Recruitment Solutions,13636W
Gloucester City Council,23UE,Planning Policy,PT300,Basic Pay -Admin /Prof Staff,2601,Temporary staff w/e 12/07/2015,10/09/2015,405544,2399.72,NET,The Oyster Partnership Limited,14900T
Gloucester City Council,23UE,Planning Policy,PT300,Basic Pay -Admin /Prof Staff,2601,Temporary staff W/E 14/08/15,10/09/2015,406863,2219.09,NET,The Oyster Partnership Limited,14900T
Gloucester City Council,23UE,Planning Policy,PT300,Basic Pay -Admin /Prof Staff,2601,temporary staff w/e 19/07/2015,10/09/2015,405632,2413.53,NET,The Oyster Partnership Limited,14900T
Gloucester City Council,23UE,Planning Policy,PT300,Basic Pay -Admin /Prof Staff,2601,temporary staff w/e 26/07/2015,10/09/2015,405924,2415.33,NET,The Oyster Partnership Limited,14900T
Gloucester City Council,23UE,Planning Policy,PT300,Basic Pay -Admin /Prof Staff,2601,temporary staff W/E 31/07/15,10/09/2015,406100,2230.45,NET,The Oyster Partnership Limited,14900T
Gloucester City Council,23UE,Planning Policy,PT300,Basic Pay -Admin /Prof Staff,2601,temporary staff w/e 9/8/15,10/09/2015,406549,2230,NET,The Oyster Partnership Limited,14900T
Gloucester City Council,23UE,Registration Of Electors,RS400,Fees For Services Received,5350,STATIONERY,10/09/2015,407527,75.1,NET,Shaw & Sons Ltd,40310F
Gloucester City Council,23UE,Registration Of Electors,RS400,Fees For Services Received,5350,VOTER REG CAMPAIGN,10/09/2015,407014,868,NET,Stroud District Council,42500D
Gloucester City Council,23UE,Registration Of Electors,RS400,Postages,5400,IER mailing act 0870585031,10/09/2015,407601,55.44,NET,Royal Mail S.Wales & South West,35830S
Gloucester City Council,23UE,Registration Of Electors,RS400,Printing,5300,HEF foem mailing,10/09/2015,407588,5681.44,NET,Alpha Response Print & Mail Ltd,03029U
Gloucester City Council,23UE,Rugby World Cup,LT450,Fees For Services Received,5350,Artificial grass for RWC Fanzone,10/09/2015,407597,3630,NET,Perfect Green Grass Ltd,15834V
Gloucester City Council,23UE,Rugby World Cup,LT450,Fees For Services Received,5350,Gloucester Fanzone render,10/09/2015,407602,200,NET,Zee Dimension,15833X
Gloucester City Council,23UE,Rugby World Cup,LT450,Fees For Services Received,5350,trestle table hire RWC Fanzone,10/09/2015,407596,240,NET,Valley Furniture Hire Ltd,08324P
Gloucester City Council,23UE,Safer Stronger Communities,FP841,Other Minor Supplies Services,5590,DISPLAY STAND,10/09/2015,407438,198,NET,Squirty Ink,13834P
Gloucester City Council,23UE,Vehicles,RS140,Fuel,4012,fuel,10/09/2015,407319,108.94,NET,Allstar Business Solutions Ltd (Arval),06594A
Gloucester City Council,23UE,Blackfriars,LA609,Security Services Fees,5351,SIA staff AUG15,11/09/2015,407340,756.25,NET,Nsgl Ltd (Security Acct),12539E
Gloucester City Council,23UE,Business Transformation & Tech,RT700,Computer Hardware <5000,5420,Lattitude E6540,11/09/2015,404691,712.89,NET,Dell Computers Corporation Ltd,55920C
Gloucester City Council,23UE,Business Transformation & Tech,RT700,Internet Service Provider Fees,5429,ACCT 511159201,11/09/2015,405083,80,NET,Virgin Media Payments Ltd,09376J
Gloucester City Council,23UE,Business Transformation & Tech,RT700,Telephones And Fax,5410,ACCT 511746301,11/09/2015,407457,30,NET,Virgin Media Payments Ltd,09376J
Gloucester City Council,23UE,Business Transformation & Tech,RT700,Telephones And Fax,5410,ACCT 511746301,11/09/2015,407605,30,NET,Virgin Media Payments Ltd,09376J
Gloucester City Council,23UE,Cemeteries,HC300,Operational Materials,5070,CAN,11/09/2015,407646,46,NET,Spaldings,48759Y
Gloucester City Council,23UE,Cemeteries,HC300,Operational Materials,5070,digger bucket clips,11/09/2015,407723,18.2,NET,Jay Bee Plant Sales Ltd,11156L
Gloucester City Council,23UE,Cemeteries,HC300,Operational Materials,5070,double ended allen key,11/09/2015,407725,28,NET,Cleveland Sitesafe Ltd,03910T
Gloucester City Council,23UE,Cemeteries,HC300,Trade Refuse Tipping Fees,6297,HIRE AUG 2015,11/09/2015,407638,380,NET,Allstone Sand & Gravel Aggregates Ltd,00940M
Gloucester City Council,23UE,Cemeteries,HC300,Trade Refuse Tipping Fees,6297,HIRE JULY 2015,11/09/2015,407637,475,NET,Allstone Sand & Gravel Aggregates Ltd,00940M
Gloucester City Council,23UE,Cemeteries,HC300,Trade Refuse Tipping Fees,6297,WASTE,11/09/2015,407643,640,NET,Allstone Sand & Gravel Aggregates Ltd,00940M
Gloucester City Council,23UE,Cemeteries,HC300,Trade Refuse Tipping Fees,6297,WASTE,11/09/2015,407710,400,NET,Allstone Sand & Gravel Aggregates Ltd,00940M
Gloucester City Council,23UE,City Museum And Art Gallery,LM200,Educational Materials,5073,goods for resale,11/09/2015,407589,183.58,NET,The Consortium,10365J
Gloucester City Council,23UE,City Museum And Art Gallery,LM200,Hire Of Equipment,5020,RENTAL AUG 2015,11/09/2015,407653,135,NET,La Spaziale Uk Ltd,11823P
Gloucester City Council,23UE,Civil Parking Enforcement,PT741,Computer Software Maintenance,5427,May 2015,11/09/2015,406388,2505.37,NET,Chipside Ltd,06535T
Gloucester City Council,23UE,Client Revs & Bens Contract,RT240,Bailiffs Fees,5368,VAT ONLY INVOICE,11/09/2015,407662,0,NET,Phoenix Commercial Collections Ltd,13435J
Gloucester City Council,23UE,Client Revs & Bens Contract,RT240,Bailiffs Fees,5368,VAT ONLY INVOICE,11/09/2015,407663,0,NET,Phoenix Commercial Collections Ltd,13435J
Gloucester City Council,23UE,Client Revs & Bens Contract,RT240,Fees For Services Received,5350,warrants for arrest & detention,11/09/2015,407721,49.5,NET,Assevarate Ltd,11749A
Gloucester City Council,23UE,Community Safety Projects,FP500,Basic Pay - Temporary Staff,2751,TEMPORARY STAFF W/E 28/08/15,11/09/2015,407444,660.36,NET,Travail Employment Ltd,49371W
Gloucester City Council,23UE,Contact Centre,RB300,Other Minor Supplies Services,5590,AUG 2015,11/09/2015,407426,210.86,NET,Office Response,09439K
Gloucester City Council,23UE,Contact Centre,RB300,Stationery,5302,CLEANING GOODS,11/09/2015,407192,51.83,NET,Acs Business Supplies Ltd,15791M
Gloucester City Council,23UE,Contact Centre,RB300,Stationery,5302,STATIONERY,11/09/2015,407642,73.44,NET,Lyreco Uk Ltd,11746G
Gloucester City Council,23UE,Council Streetcare Team,HI101,Operational Equipment <5000,5012,CLEANING GOODS,11/09/2015,407192,35.18,NET,Acs Business Supplies Ltd,15791M
Gloucester City Council,23UE,Crematorium,HC200,Book Of Memory,5055,VISIT 21/08/15,11/09/2015,407648,55.7,NET,Hilton Cabinet Co Ltd,21910A
Gloucester City Council,23UE,Crematorium,HC200,Cleaning Materials,3600,CLEANING GOODS,11/09/2015,407682,44.89,NET,Core Hygiene Ltd,03885P
Gloucester City Council,23UE,Crematorium,HC200,Memorial Plaques,5053,Heart keepsake,11/09/2015,407719,64,NET,Teleshore (Uk) Ltd,56819G
Gloucester City Council,23UE,Crematorium,HC200,Repair/Maint Of Fixed Plant,3006,LAMPS,11/09/2015,407674,37.5,NET,Mitchells (Gloucester) Ltd,30160U
Gloucester City Council,23UE,Crematorium,HC200,Repair/Maint Of Fixed Plant,3006,VISIT 07/08/15,11/09/2015,407677,269.85,NET,Facultatieve Technologies Ltd,51210H
Gloucester City Council,23UE,Development Management,PT200,Consultants Fees,5349,PEEL CENTRE,11/09/2015,407655,750,NET,Dpds Ltd,05404V
Gloucester City Council,23UE,Development Management,PT200,Consultants Fees,5349,TO BE CREDITED,11/09/2015,407656,1750,NET,Dpds Ltd,05404V
Gloucester City Council,23UE,Docks Complex - Catering Servs,RB110,Charges For Services,9300,FOOD,11/09/2015,407462,27.72,NET,Janes Pantry,24500W
Gloucester City Council,23UE,Docks Complex - Services,RB100,Cleaning Materials,3600,CLEANING GOODS,11/09/2015,407192,652.59,NET,Acs Business Supplies Ltd,15791M
Gloucester City Council,23UE,Gloucester Guildhall,LA100,Cleaning Materials,3600,Nviroclean waterless urinal cleaner,11/09/2015,407720,226,NET,Gentworks Ltd,10388W
Gloucester City Council,23UE,Guildhall Events,LA200,Security Services Fees,5351,SIA staff AUG15,11/09/2015,407340,498.25,NET,Nsgl Ltd (Security Acct),12539E
Gloucester City Council,23UE,Human Resources,EH100,Fees For Services Received,5350,REDACTED,11/09/2015,407687,350,NET,Bindmans Llp,15825W
Gloucester City Council,23UE,Meet & Greet,FP309,Advertising And Publicity,5702,FLOWERS,11/09/2015,407686,183.33,NET,Bow Bells,12609J
Gloucester City Council,23UE,Rehousing,CH111,Fees For Services Received,5350,MEDICAL REPORT,11/09/2015,407692,20.5,NET,Gloucester City Health Centre,02093U
Gloucester City Council,23UE,Rehousing,CH111,Fees For Services Received,5350,MEDICAL REPORT,11/09/2015,407690,25.5,NET,Rosebank Health,03041E
Gloucester City Council,23UE,Rugby World Cup,LT450,Fees For Services Received,5350,ARTIFICIAL GRASS,11/09/2015,407654,300,NET,Perfect Green Grass Ltd,15834V
Gloucester City Council,23UE,Rugby World Cup,LT450,Fees For Services Received,5350,BANDSTAND,11/09/2015,407688,1475,NET,Victorian Lace Designs,15803G
Gloucester City Council,23UE,Rugby World Cup,LT450,Fees For Services Received,5350,toilet hire for RWC201XV fanzone,11/09/2015,407727,17655,NET,Prestige Toilet Hire,04437N
Gloucester City Council,23UE,Rugby World Cup,LT450,Fees For Services Received,5350,woodthorpe artificial grass,11/09/2015,407726,7080,NET,Smart Direct (Europe) Ltd,15837N
Gloucester City Council,23UE,The Arbor,HC501,Catering Provisions -Food,5110,FOOD,11/09/2015,407634,51.93,NET,Total Produce Gloucester,12645E
Gloucester City Council,23UE,The Arbor,HC501,Catering Provisions -Food,5110,FOOD,11/09/2015,407635,38.22,NET,Total Produce Gloucester,12645E
Gloucester City Council,23UE,The Arbor,HC501,Catering Provisions -Food,5110,FOOD,11/09/2015,407636,9.92,NET,Total Produce Gloucester,12645E
Gloucester City Council,23UE,The Arbor,HC501,Catering Provisions -Food,5110,FOOD,11/09/2015,407639,23.1,NET,Total Produce Gloucester,12645E
Gloucester City Council,23UE,The Arbor,HC501,Catering Provisions -Food,5110,FOOD,11/09/2015,407640,18.88,NET,Total Produce Gloucester,12645E
Gloucester City Council,23UE,The Arbor,HC501,Catering Provisions -Food,5110,FOOD,11/09/2015,407641,114.63,NET,Total Produce Gloucester,12645E
Gloucester City Council,23UE,The Arbor,HC501,Catering Provisions -Food,5110,FOOD,11/09/2015,407664,53.66,NET,Total Produce Gloucester,12645E
Gloucester City Council,23UE,The Arbor,HC501,Catering Provisions -Food,5110,FOOD,11/09/2015,407665,49.37,NET,Total Produce Gloucester,12645E
Gloucester City Council,23UE,The Arbor,HC501,Catering Provisions -Food,5110,FOOD,11/09/2015,407666,18.45,NET,Total Produce Gloucester,12645E
Gloucester City Council,23UE,The Arbor,HC501,Catering Provisions -Food,5110,FOOD,11/09/2015,407667,42.28,NET,Total Produce Gloucester,12645E
Gloucester City Council,23UE,The Arbor,HC501,Catering Provisions -Food,5110,FOOD,11/09/2015,407668,27.39,NET,Total Produce Gloucester,12645E
Gloucester City Council,23UE,The Arbor,HC501,Catering Provisions -Food,5110,FOOD,11/09/2015,407669,15.93,NET,Total Produce Gloucester,12645E
Gloucester City Council,23UE,The Arbor,HC501,Catering Provisions -Food,5110,FOOD,11/09/2015,407670,26.79,NET,Total Produce Gloucester,12645E
Gloucester City Council,23UE,The Arbor,HC501,Catering Provisions -Food,5110,FOOD,11/09/2015,407671,16.71,NET,Total Produce Gloucester,12645E
Gloucester City Council,23UE,The Arbor,HC501,Catering Provisions -Food,5110,FOOD,11/09/2015,407672,16.04,NET,Total Produce Gloucester,12645E
Gloucester City Council,23UE,The Arbor,HC501,Catering Provisions -Food,5110,FOOD,11/09/2015,407691,127.37,NET,Bidvest Foodservice (3663),55585U
Gloucester City Council,23UE,The Arbor,HC501,Catering Provisions -Food,5110,FOOD,11/09/2015,407693,31.74,NET,Bidvest Foodservice (3663),55585U
Gloucester City Council,23UE,The Arbor,HC501,Catering Provisions -Food,5110,FOOD,11/09/2015,407694,340.67,NET,Bidvest Foodservice (3663),55585U
Gloucester City Council,23UE,The Arbor,HC501,Catering Provisions -Food,5110,FOOD,11/09/2015,407704,137.69,NET,Bidvest Foodservice (3663),55585U
Gloucester City Council,23UE,The Arbor,HC501,Catering Provisions -Food,5110,FOOD,11/09/2015,407705,161.87,NET,Bidvest Foodservice (3663),55585U
Gloucester City Council,23UE,The Arbor,HC501,Catering Provisions -Food,5110,FOOD,11/09/2015,407709,377.14,NET,Bidvest Foodservice (3663),55585U
Gloucester City Council,23UE,The Arbor,HC501,Catering Provisions -Food,5110,FOOD,11/09/2015,407713,202.09,NET,Bidvest Foodservice (3663),55585U
Gloucester City Council,23UE,The Arbor,HC501,Catering Provisions -Food,5110,FOOD,11/09/2015,407714,368.13,NET,Bidvest Foodservice (3663),55585U
Gloucester City Council,23UE,The Arbor,HC501,Catering Provisions -Liquor,5111,DRINK,11/09/2015,407650,220.49,NET,Cellar Supplies Cheltenham Ltd,01563L
Gloucester City Council,23UE,The Arbor,HC501,Catering Provisions -Liquor,5111,DRINK,11/09/2015,407651,72.45,NET,Cellar Supplies Cheltenham Ltd,01563L
Gloucester City Council,23UE,The Arbor,HC501,Catering Provisions -Liquor,5111,DRINK,11/09/2015,407652,134.4,NET,Cellar Supplies Cheltenham Ltd,01563L
Gloucester City Council,23UE,The Arbor,HC501,Other Minor Supplies Services,5590,FLOWERS,11/09/2015,407698,19.8,NET,Carols Florist,01274X
Gloucester City Council,23UE,The Arbor,HC501,Other Minor Supplies Services,5590,FLOWERS,11/09/2015,407699,34.8,NET,Carols Florist,01274X
Gloucester City Council,23UE,The Arbor,HC501,Other Minor Supplies Services,5590,FLOWERS,11/09/2015,407700,35.8,NET,Carols Florist,01274X
Gloucester City Council,23UE,The Arbor,HC501,Other Minor Supplies Services,5590,FLOWERS,11/09/2015,407701,37.8,NET,Carols Florist,01274X
Gloucester City Council,23UE,The Arbor,HC501,Other Minor Supplies Services,5590,FLOWERS,11/09/2015,407702,49.8,NET,Carols Florist,01274X
Gloucester City Council,23UE,Tic Trading,LT110,Trade Refuse Sacks,5040,LABELS,11/09/2015,407678,189.15,NET,Enterprise (Aol) Ltd,06695G
Gloucester City Council,23UE,Tic Trading,LT110,Trade Refuse Sacks,5040,SACKS,11/09/2015,407679,1848.8,NET,Enterprise (Aol) Ltd,06695G
Gloucester City Council,23UE,Advance City Attractions,LT109,Materials For Sale,5080,TICKET SALES,14/09/2015,407647,123.75,NET,Alton Towers Resort,15617F
Gloucester City Council,23UE,Advance City Attractions,LT109,Sale Of Goods And Services,9230,TICKET SALES,14/09/2015,407647,-38.67,NET,Alton Towers Resort,15617F
Gloucester City Council,23UE,Asbru - Other Funders,FP846,Other Minor Supplies Services,5590,room hire 8/9/15 BBN function,14/09/2015,407782,2797,NET,Rooms Booked Ltd C/O New County Hotel,15836R
Gloucester City Council,23UE,Aspire Admin Charges,LC105,Security Services Fees,5351,OCT15 contract services,14/09/2015,407771,181.28,NET,G4s Cash Solutions (Uk) Ltd,04290V
Gloucester City Council,23UE,Cemeteries,HC300,Basic Pay - Temporary Staff,2751,STAFF W/E 30/08/15,14/09/2015,407525,439.88,NET,Premiere Employment Group Ltd,55468Z
Gloucester City Council,23UE,Cemeteries,HC300,Basic Pay - Temporary Staff,2751,STAFF W/E 30/08/15,14/09/2015,407526,434.01,NET,Premiere Employment Group Ltd,55468Z
Gloucester City Council,23UE,Cemeteries,HC300,Basic Pay - Temporary Staff,2751,temporary staff w/e 16/8/15,14/09/2015,407353,439.88,NET,Premiere Employment Group Ltd,55468Z
Gloucester City Council,23UE,Cems/Crems Admin,HC100,Security Services Fees,5351,OCT15 contract services,14/09/2015,407771,103.33,NET,G4s Cash Solutions (Uk) Ltd,04290V
Gloucester City Council,23UE,City Museum And Art Gallery,LM200,Security Services Fees,5351,OCT15 contract services,14/09/2015,407771,90.64,NET,G4s Cash Solutions (Uk) Ltd,04290V
Gloucester City Council,23UE,Cleansing Services Admin,HI100,Fees For Services Received,5350,LARAC CONFERENCE L GRIFFITHS,14/09/2015,407793,179,NET,Environment Media Group,14994E
Gloucester City Council,23UE,Client Revs & Bens Contract,RT240,Bailiffs Fees,5368,vat due on fees,14/09/2015,407765,0,NET,Bristow & Sutor,05450M
Gloucester City Council,23UE,Contact Centre,RB300,Postages,5400,ACCT 0074842000 W/E 29/08/15,14/09/2015,407685,84.01,NET,Royal Mail S.Wales & South West,35830S
Gloucester City Council,23UE,Corporate Reporting /Financing,RC504,Fees For Services Received,5350,childcare vouchers,14/09/2015,407716,27.93,NET,Wider Plan Ltd ( Formerly Kiddivouchers),07893B
Gloucester City Council,23UE,REDACTED,REDACTED,REDACTED,REDACTED,REDACTED,14/09/2015,REDACTED,780,NET,REDACTED,REDACTED
Gloucester City Council,23UE,Crematorium,HC200,General Repair/Maint Buildings,3000,Crem sanitary disposal unit,14/09/2015,407717,17.28,NET,Minster Cleaning Services,02158R
Gloucester City Council,23UE,Daniels Brook S106,LY120,Contract Payments,0020,Daniels Brook pollarding & tree surgery,14/09/2015,407050,4870,CAP,Charlton Abbotts Forestry Ltd,14989X
Gloucester City Council,23UE,Docks Complex - Services,RB100,Security Services Fees,5351,OCT15 contract services,14/09/2015,407771,270.81,NET,G4s Cash Solutions (Uk) Ltd,04290V
Gloucester City Council,23UE,Electrical Investigatory Works,RY142,Contract Payments,0020,domestic monitoring SEP-NOV15,14/09/2015,407773,3146.25,CAP,Kingfisher Environmental Services Ltd,04738V
Gloucester City Council,23UE,Environmental Planning,LM340,Operational Materials,5070,NETHERIDGE,14/09/2015,407675,600,NET,Tcv T/A The Conservation Volunteers,55897V
Gloucester City Council,23UE,External Communications,RC431,Publications,5060,CITY LIFE,14/09/2015,407683,12000,NET,Gloucestershire County Council,18650D
Gloucester City Council,23UE,Folk Museum,LM210,Security Services Fees,5351,OCT15 contract services,14/09/2015,407771,90.64,NET,G4s Cash Solutions (Uk) Ltd,04290V
Gloucester City Council,23UE,Gloucester Guildhall,LA100,Security Services Fees,5351,OCT15 contract services,14/09/2015,407771,90.64,NET,G4s Cash Solutions (Uk) Ltd,04290V
Gloucester City Council,23UE,Guildhall Bar And Caf�,LA210,Catering Provisions -Food,5110,food,14/09/2015,407585,47.5,NET,Janes Pantry,24500W
Gloucester City Council,23UE,Investment Property,RB500,Fees For Services Received,5350,Lanthony Secunda Priory S106 deed,14/09/2015,407780,1874,NET,Harrison Clark Rickerbys Solicitors,11064C
Gloucester City Council,23UE,Members Support,RC300,Members Training,5535,training course for Cllr Beeley,14/09/2015,407767,125,NET,South Gloucestershire Council,83349RV
Gloucester City Council,23UE,Rugby World Cup,LT450,Fees For Services Received,5350,RWC20XV grandstand hire,14/09/2015,407777,9547,NET,Wernick Event Hire Ltd,15835T
Gloucester City Council,23UE,The Arbor,HC501,Catering Provisions -Food,5110,food,14/09/2015,407778,65.9,NET,Castell Howell Foods Ltd,15566X
Gloucester City Council,23UE,The Arbor,HC501,Catering Provisions -Food,5110,food,14/09/2015,407779,36.9,NET,Castell Howell Foods Ltd,15566X
Gloucester City Council,23UE,The Arbor,HC501,Catering Provisions -Food,5110,food,14/09/2015,407786,441.69,NET,Bidvest Foodservice (3663),55585U
Gloucester City Council,23UE,The Arbor,HC501,Catering Provisions -Food,5110,food,14/09/2015,407787,324.97,NET,Bidvest Foodservice (3663),55585U
Gloucester City Council,23UE,The Arbor,HC501,Catering Provisions -Food,5110,goods,14/09/2015,407774,27.28,NET,Bidvest Foodservice (3663),55585U
Gloucester City Council,23UE,The Arbor,HC501,Catering Provisions -Food,5110,goods,14/09/2015,407775,31.04,NET,Bidvest Foodservice (3663),55585U
Gloucester City Council,23UE,The Arbor,HC501,Catering Provisions -Food,5110,goods,14/09/2015,407776,38.12,NET,Bidvest Foodservice (3663),55585U
Gloucester City Council,23UE,The Arbor,HC501,Operational Equipment <5000,5012,cutting boards,14/09/2015,407788,44.91,NET,Bidvest Foodservice (3663),55585U
Gloucester City Council,23UE,Tic Theatre Ticket Sales,LT107,Materials For Sale,5080,TICKETS,14/09/2015,407649,2133.2,NET,Raf Charitable Trust Enterprise,05292F
Gloucester City Council,23UE,Tic Theatre Ticket Sales,LT107,Sale Of Goods And Services,9230,TICKETS,14/09/2015,407649,-75,NET,Raf Charitable Trust Enterprise,05292F
Gloucester City Council,23UE,Tourism Marketing,LT100,Security Services Fees,5351,OCT15 contract services,14/09/2015,407771,90.64,NET,G4s Cash Solutions (Uk) Ltd,04290V
Gloucester City Council,23UE,Alney Island,PY128,Contract Payments,0020,Alney Island footpath works,15/09/2015,407320,34684.71,CAP,Rf Gardiner Limited,12299B
Gloucester City Council,23UE,Cemeteries,HC300,Basic Pay - Temporary Staff,2751,STAFF W/E 05/09/15,15/09/2015,407831,357.77,NET,Premiere Employment Group Ltd,55468Z
Gloucester City Council,23UE,Cemeteries,HC300,Basic Pay - Temporary Staff,2751,STAFF W/E 06/09/15,15/09/2015,407830,351.9,NET,Premiere Employment Group Ltd,55468Z
Gloucester City Council,23UE,Client Revs & Bens Contract,RT240,Bailiffs Fees,5368,VAT due on fees & fees paid direct,15/09/2015,407766,7.25,NET,Bristow & Sutor,05450M
Gloucester City Council,23UE,Client Revs & Bens Contract,RT240,Security Services Fees,5351,CASH DELIVERIES,15/09/2015,407872,3.53,NET,G4s Cash Solutions (Uk) Ltd,04290V
Gloucester City Council,23UE,Contact Centre,RB300,Publications,5060,NEWSPAPERS,15/09/2015,407826,145.65,NET,Ymk Supermarket,55281U
Gloucester City Council,23UE,Council Streetcare Team,HI101,Maint Of Grounds - General,3030,AVIARY,15/09/2015,407861,104,NET,Wood Veterinary Group,48892V
Gloucester City Council,23UE,Crematorium,HC200,Memorial Plaques,5053,PLAQUE,15/09/2015,407840,54,NET,Arkell & Hurcombe,59812T
Gloucester City Council,23UE,Crematorium,HC200,Memorial Plaques,5053,PLAQUES,15/09/2015,407839,519,NET,Arkell & Hurcombe,59812T
Gloucester City Council,23UE,Development Management,PT200,Advertising And Publicity,5702,ADVERT 10/09/15,15/09/2015,407859,409.02,NET,Local World Ltd,08556P
Gloucester City Council,23UE,Disabled Facilities Grants,CY013,Disabled Facility Grants,0074,MDF5139,15/09/2015,407791,4587.8,CAP,Mears Home Improvement Ltd,00096G
Gloucester City Council,23UE,Docks Complex - Services,RB100,Operational Equipment <5000,5012,DELIVERY,15/09/2015,407093,10,NET,Bannerbridge Plc,13703G
Gloucester City Council,23UE,Employers Pension Contribs,ZR355,Pension Contribs Incl Backf,2901,LGPS AUG/SEPT 2015,15/09/2015,407855,26702.86,NET,Gloucestershire County Council,10614L
Gloucester City Council,23UE,Financial Services,RT200,Training Course Fees,5367,AAT TRAINING,15/09/2015,407857,40,NET,Premier Training Centre Llp,15004Y
Gloucester City Council,23UE,Food Safety,HE100,Fees For Services Received,5350,LEVEL 2,15/09/2015,407845,513.05,NET,Chartered Institute Enviromental Health,50829M
Gloucester City Council,23UE,Guildhall Bar And Caf�,LA210,Catering Provisions -Food,5110,food,15/09/2015,407823,4.6,NET,Total Produce Gloucester,12645E
Gloucester City Council,23UE,Guildhall Bar And Caf�,LA210,Catering Provisions -Food,5110,food,15/09/2015,407833,4.6,NET,Total Produce Gloucester,12645E
Gloucester City Council,23UE,Guildhall Bar And Caf�,LA210,Catering Provisions -Food,5110,FOOD,15/09/2015,407824,4.6,NET,Total Produce Gloucester,12645E
Gloucester City Council,23UE,Guildhall Bar And Caf�,LA210,Catering Provisions -Food,5110,FOOD,15/09/2015,407825,4.6,NET,Total Produce Gloucester,12645E
Gloucester City Council,23UE,Guildhall Bar And Caf�,LA210,Catering Provisions -Food,5110,FOOD,15/09/2015,407834,4.6,NET,Total Produce Gloucester,12645E
Gloucester City Council,23UE,Guildhall Bar And Caf�,LA210,Catering Provisions -Food,5110,FOOD,15/09/2015,407835,4.6,NET,Total Produce Gloucester,12645E
Gloucester City Council,23UE,Guildhall Bar And Caf�,LA210,Catering Provisions -Food,5110,FOOD,15/09/2015,407836,4.6,NET,Total Produce Gloucester,12645E
Gloucester City Council,23UE,Guildhall Bar And Caf�,LA210,Catering Provisions -Food,5110,FOOD,15/09/2015,407837,4.6,NET,Total Produce Gloucester,12645E
Gloucester City Council,23UE,Guildhall Bar And Caf�,LA210,Catering Provisions -Food,5110,FOOD,15/09/2015,407862,4.6,NET,Total Produce Gloucester,12645E
Gloucester City Council,23UE,Guildhall Bar And Caf�,LA210,Catering Provisions -Food,5110,FOOD,15/09/2015,407863,4.6,NET,Total Produce Gloucester,12645E
Gloucester City Council,23UE,Guildhall Bar And Caf�,LA210,Catering Provisions -Food,5110,FOOD,15/09/2015,407869,100.34,NET,Woodward Foodservice,10714F
Gloucester City Council,23UE,Guildhall Events,LA200,Advertising And Publicity,5702,ADVERT 09/09/15,15/09/2015,407852,280,NET,Forest Of Dean & Wye Valley Review,03989A
Gloucester City Council,23UE,Guildhall Events,LA200,Fees For Services Received,5350,DELIVERIES OCT/NOV,15/09/2015,407829,382.5,NET,Glide Media,58829J
Gloucester City Council,23UE,REDACTED,REDACTED,REDACTED,REDACTED,REDACTED,15/09/2015,REDACTED,100,NET,REDACTED,REDACTED
Gloucester City Council,23UE,REDACTED,REDACTED,REDACTED,REDACTED,REDACTED,15/09/2015,REDACTED,100,NET,REDACTED,REDACTED
Gloucester City Council,23UE,REDACTED,REDACTED,REDACTED,REDACTED,REDACTED,15/09/2015,REDACTED,816,NET,REDACTED,REDACTED
Gloucester City Council,23UE,Homelessness,CH120,Board And Lodging,5515,NOVA HOUSE,15/09/2015,407841,1570.56,NET,Gloucester City Homes,05244T
Gloucester City Council,23UE,Homelessness,CH120,Board And Lodging,5515,NOVA HOUSE,15/09/2015,407842,782,NET,Gloucester City Homes,05244T
Gloucester City Council,23UE,Homelessness,CH120,Board And Lodging,5515,NOVA HOUSE,15/09/2015,407843,425.36,NET,Gloucester City Homes,05244T
Gloucester City Council,23UE,Homelessness,CH120,Board And Lodging,5515,NOVA HOUSE,15/09/2015,407844,2107.23,NET,Gloucester City Homes,05244T
Gloucester City Council,23UE,REDACTED,REDACTED,REDACTED,REDACTED,REDACTED,15/09/2015,REDACTED,900,NET,REDACTED,REDACTED
Gloucester City Council,23UE,Nms Contract,HI102,Fees For Services Received,5350,consultancy fees June-July 2015,15/09/2015,407874,5778.74,NET,Somerset County Council,15963G
Gloucester City Council,23UE,Nms Contract,HI102,Fees For Services Received,5350,consultancy fees March-May 2015,15/09/2015,407873,5033.97,NET,Somerset County Council,15963G
Gloucester City Council,23UE,Registration Of Electors,RS400,Fees For Services Received,5350,polling station,15/09/2015,407600,225,NET,Court Community Association,57694T
Gloucester City Council,23UE,The Arbor,HC501,Catering Provisions -Food,5110,FOOD,15/09/2015,407868,309.17,NET,Bidvest Foodservice (3663),55585U
Gloucester City Council,23UE,The Arbor,HC501,Security Services Fees,5351,CASH DELIVERIES,15/09/2015,407872,14.11,NET,G4s Cash Solutions (Uk) Ltd,04290V
Gloucester City Council,23UE,Vehicles,RS140,Fuel,4012,fuel,15/09/2015,407715,347.81,NET,Allstar Business Solutions Ltd (Arval),06594A
Gloucester City Council,23UE,Barbican Car Park,RB543,Maint Of Grounds - General,3030,Barbican car park works,16/09/2015,407724,320,NET,Ken Pink Plant Hire Ltd,56884V
Gloucester City Council,23UE,Business Transformation & Tech,RT700,Computer Software <5000,5425,Annual Software support & maintenance,16/09/2015,405493,139.96,NET,Clarity Retail Systems,10290R
Gloucester City Council,23UE,Business Transformation & Tech,RT700,Computer Software <5000,5425,AUG 15-MAR 16,16/09/2015,406903,293.94,NET,Clarity Retail Systems,10290R
Gloucester City Council,23UE,Business Transformation & Tech,RT700,Computer Software <5000,5425,AUG 15-MAR 16,16/09/2015,406923,279.92,NET,Clarity Retail Systems,10290R
Gloucester City Council,23UE,Business Transformation & Tech,RT700,Computer Software <5000,5425,AUG 2015-MAR 2016,16/09/2015,406902,146.97,NET,Clarity Retail Systems,10290R
Gloucester City Council,23UE,Business Transformation & Tech,RT700,Computer Software <5000,5425,JUNE 15 - MAR 16,16/09/2015,406922,4135.47,NET,Clarity Retail Systems,10290R
Gloucester City Council,23UE,Business Transformation & Tech,RT700,Computer Software <5000,5425,MAR 15-FEB 16,16/09/2015,406905,3262.98,NET,Clarity Retail Systems,10290R
Gloucester City Council,23UE,Business Transformation & Tech,RT700,Computer Software <5000,5425,MAR 2016,16/09/2015,406900,214.16,NET,Clarity Retail Systems,10290R
Gloucester City Council,23UE,Business Transformation & Tech,RT700,Computer Software <5000,5425,MAR 2016,16/09/2015,406901,271.92,NET,Clarity Retail Systems,10290R
Gloucester City Council,23UE,Business Transformation & Tech,RT700,Computer Software <5000,5425,OCT 15-MAR 16,16/09/2015,406904,4065.23,NET,Clarity Retail Systems,10290R
Gloucester City Council,23UE,Business Transformation & Tech,RT700,Computer Software Maintenance,5427,MAR 15 - MAR 16,16/09/2015,406906,6013.38,NET,Clarity Retail Systems,10290R
Gloucester City Council,23UE,Cemeteries,HC300,Other Minor Supplies Services,5590,Various Items,16/09/2015,406580,249,NET,Allstone Sand & Gravel Aggregates Ltd,00940M
Gloucester City Council,23UE,Cemeteries,HC300,"Seeds, Trees, Plants, Shrubs",3028,PLANTS,16/09/2015,407832,441.1,NET,Genus Softworks Ltd,12320N
Gloucester City Council,23UE,Cemeteries,HC300,Trade Refuse Tipping Fees,6297,Various Items,16/09/2015,406580,1710,NET,Allstone Sand & Gravel Aggregates Ltd,00940M
Gloucester City Council,23UE,Crematorium,HC200,Equipment For Sale,5050,BENCH,16/09/2015,407853,429.16,NET,Codec Facilities Ltd,14338Y
Gloucester City Council,23UE,Crematorium,HC200,Equipment For Sale,5050,BENCH,16/09/2015,407854,429.16,NET,Codec Facilities Ltd,14338Y
Gloucester City Council,23UE,Docks Complex - Castlemeads Cp,RB210,Contracted Services,6970,GC other items,16/09/2015,407358,1373.85,NET,Apcoa Parking (Uk) Ltd,09954M
Gloucester City Council,23UE,Docks Complex - Castlemeads Cp,RB210,Contracted Services,6970,GC P&D Head Cams,16/09/2015,407357,2096.19,NET,Apcoa Parking (Uk) Ltd,09954M
Gloucester City Council,23UE,Docks Complex - Castlemeads Cp,RB210,Contracted Services,6970,GC vehicles,16/09/2015,407356,454.26,NET,Apcoa Parking (Uk) Ltd,09954M
Gloucester City Council,23UE,Docks Complex - Catering Servs,RB110,Charges For Services,9300,FOOD,16/09/2015,407463,16.13,NET,Janes Pantry,24500W
Gloucester City Council,23UE,Docks Complex - Catering Servs,RB110,Charges For Services,9300,FOOD,16/09/2015,407464,14.48,NET,Janes Pantry,24500W
Gloucester City Council,23UE,Docks Complex - Catering Servs,RB110,Charges For Services,9300,FOOD,16/09/2015,407465,18.64,NET,Janes Pantry,24500W
Gloucester City Council,23UE,Docks Complex - Catering Servs,RB110,Charges For Services,9300,FOOD,16/09/2015,407466,9.8,NET,Janes Pantry,24500W
Gloucester City Council,23UE,Docks Complex - Catering Servs,RB110,Charges For Services,9300,FOOD,16/09/2015,407467,7.49,NET,Janes Pantry,24500W
Gloucester City Council,23UE,Docks Complex - Catering Servs,RB110,Charges For Services,9300,FOOD,16/09/2015,407468,16.13,NET,Janes Pantry,24500W
Gloucester City Council,23UE,Docks Complex - Catering Servs,RB110,Charges For Services,9300,FOOD,16/09/2015,407469,11.8,NET,Janes Pantry,24500W
Gloucester City Council,23UE,Docks Complex - Catering Servs,RB110,Charges For Services,9300,FOOD,16/09/2015,407470,7.66,NET,Janes Pantry,24500W
Gloucester City Council,23UE,Docks Complex - Catering Servs,RB110,Charges For Services,9300,FOOD,16/09/2015,407471,10.48,NET,Janes Pantry,24500W
Gloucester City Council,23UE,Docks Complex - Catering Servs,RB110,Charges For Services,9300,FOOD,16/09/2015,407472,11.22,NET,Janes Pantry,24500W
Gloucester City Council,23UE,Docks Complex - Catering Servs,RB110,Charges For Services,9300,FOOD,16/09/2015,407473,11.81,NET,Janes Pantry,24500W
Gloucester City Council,23UE,Docks Complex - Catering Servs,RB110,Charges For Services,9300,FOOD,16/09/2015,407474,26.66,NET,Janes Pantry,24500W
Gloucester City Council,23UE,Docks Complex - Catering Servs,RB110,Charges For Services,9300,FOOD,16/09/2015,407475,13.07,NET,Janes Pantry,24500W
Gloucester City Council,23UE,Docks Complex - Catering Servs,RB110,Charges For Services,9300,FOOD,16/09/2015,407476,10.58,NET,Janes Pantry,24500W
Gloucester City Council,23UE,Docks Complex - Catering Servs,RB110,Charges For Services,9300,FOOD,16/09/2015,407477,7.99,NET,Janes Pantry,24500W
Gloucester City Council,23UE,Docks Complex - Catering Servs,RB110,Charges For Services,9300,FOOD,16/09/2015,407478,21.95,NET,Janes Pantry,24500W
Gloucester City Council,23UE,Docks Complex - Catering Servs,RB110,Charges For Services,9300,FOOD,16/09/2015,407479,14.32,NET,Janes Pantry,24500W
Gloucester City Council,23UE,Docks Complex - Catering Servs,RB110,Charges For Services,9300,FOOD,16/09/2015,407480,8.33,NET,Janes Pantry,24500W
Gloucester City Council,23UE,Docks Complex - Catering Servs,RB110,Charges For Services,9300,FOOD,16/09/2015,407481,9.74,NET,Janes Pantry,24500W
Gloucester City Council,23UE,Docks Complex - Catering Servs,RB110,Charges For Services,9300,FOOD,16/09/2015,407482,5.94,NET,Janes Pantry,24500W
Gloucester City Council,23UE,Docks Complex - Services,RB100,Recycling,3631,AUG15 recycling,16/09/2015,407174,156.5,NET,Printwaste Recycling,57114W
Gloucester City Council,23UE,Docks Complex - Services,RB100,Recycling,3631,RECYCLING,16/09/2015,407184,56.1,NET,Printwaste Recycling,57114W
Gloucester City Council,23UE,Docks Complex - Services,RB100,Recycling,3631,RECYCLING,16/09/2015,407185,62.5,NET,Printwaste Recycling,57114W
Gloucester City Council,23UE,Docks Complex - Services,RB100,Uniforms,5201,safety boots,16/09/2015,407054,44.95,NET,Safpro Industrial Supply Co,39190W
Gloucester City Council,23UE,REDACTED,REDACTED,REDACTED,REDACTED,REDACTED,16/09/2015,REDACTED,0,NET,REDACTED,REDACTED
Gloucester City Council,23UE,Financial Services,RT200,Training Course Fees,5367,AAT Professional Ethics/Spreadsheets,16/09/2015,407902,75,NET,Pitman Training Cheltenham,15476Z
Gloucester City Council,23UE,Flooding And Drainage,HE306,Maint Of Grounds - General,3030,MILTON AVE,16/09/2015,407538,180,NET,Rdb Safety Boat Ltd,13507J
Gloucester City Council,23UE,Gloucester Guildhall,LA100,Charges For Services,9300,TEEPA SNOW,16/09/2015,407905,-25,NET,Shared Syndicate C.I.C,15838L
Gloucester City Council,23UE,Guildhall Bar And Caf�,LA210,Sale Of Goods And Services,9230,TEEPA SNOW,16/09/2015,407905,-171.35,NET,Shared Syndicate C.I.C,15838L
Gloucester City Council,23UE,Guildhall Events,LA200,Advertising And Publicity,5702,ADVERT 24/07/15,16/09/2015,407900,400,NET,Local World Ltd,08556P
Gloucester City Council,23UE,Guildhall Lettings,LA400,Charges For Use Of Facilities,9430,TEEPA SNOW,16/09/2015,407905,-475,NET,Shared Syndicate C.I.C,15838L
Gloucester City Council,23UE,Guildhall Lettings,LA400,Sale Of Goods And Services,9230,TEEPA SNOW,16/09/2015,407905,870,NET,Shared Syndicate C.I.C,15838L
Gloucester City Council,23UE,Investment Property,RB500,Lift Maintenance,3051,BLACKFRIARS,16/09/2015,407429,577.6,NET,Pickerings Europe Ltd,58816U
Gloucester City Council,23UE,Investment Property,RB500,Lift Maintenance,3051,EASTGATE MARKET,16/09/2015,407822,487.3,NET,Pickerings Europe Ltd,58816U
Gloucester City Council,23UE,Off Street Car Parks,PP110,Contracted Services,6970,DEC 14 - APR 15,16/09/2015,407660,37.4,NET,Chipside Ltd,06535T
Gloucester City Council,23UE,Off Street Car Parks,PP110,Contracted Services,6970,GC Fixed overhead,16/09/2015,407354,773.48,NET,Apcoa Parking (Uk) Ltd,09954M
Gloucester City Council,23UE,Off Street Car Parks,PP110,Contracted Services,6970,GC other items,16/09/2015,407358,10027.5,NET,Apcoa Parking (Uk) Ltd,09954M
Gloucester City Council,23UE,Off Street Car Parks,PP110,Contracted Services,6970,GC variable enforcement,16/09/2015,407355,4469.4,NET,Apcoa Parking (Uk) Ltd,09954M
Gloucester City Council,23UE,Off Street Car Parks,PP110,Contracted Services,6970,JUL/AUG 2015,16/09/2015,407657,1457.17,NET,Chipside Ltd,06535T
Gloucester City Council,23UE,Off Street Car Parks,PP110,Contracted Services,6970,JUN-AUG 2015,16/09/2015,407658,4004.48,NET,Chipside Ltd,06535T
Gloucester City Council,23UE,Off Street Car Parks,PP110,Contracted Services,6970,MAY-AUG 2015,16/09/2015,407659,30.1,NET,Chipside Ltd,06535T
Gloucester City Council,23UE,Off Street Car Parks,PP110,Contracted Services,6970,NOV 2014,16/09/2015,407661,20.1,NET,Chipside Ltd,06535T
Gloucester City Council,23UE,Safe At Home Grants,CY012,Other Capital Grants,0089,SAFE AT HOME,16/09/2015,407189,4934,CAP,Gloucestershire County Council,18650D
Gloucester City Council,23UE,Support,PT130,Charges For Services,9300,TEEPA SNOW,16/09/2015,407905,-25,NET,Shared Syndicate C.I.C,15838L
Gloucester City Council,23UE,REDACTED,REDACTED,REDACTED,REDACTED,REDACTED,16/09/2015,REDACTED,110,CAP,REDACTED,REDACTED
Gloucester City Council,23UE,Utilities,PT502,Electricity Supply,3110,23 WESTGATE ST,16/09/2015,407865,37.46,NET,Opus Energy (Corporate),12788B
Gloucester City Council,23UE,REDACTED,REDACTED,REDACTED,REDACTED,REDACTED,17/09/2015,REDACTED,1010,NET,REDACTED,REDACTED
Gloucester City Council,23UE,REDACTED,REDACTED,REDACTED,REDACTED,REDACTED,17/09/2015,REDACTED,57.6,NET,REDACTED,REDACTED
Gloucester City Council,23UE,REDACTED,REDACTED,REDACTED,REDACTED,REDACTED,17/09/2015,REDACTED,-168.33,NET,REDACTED,REDACTED
Gloucester City Council,23UE,Car Parks,GY002,Contract Payments,0020,KINGS WALK,17/09/2015,407933,1800,CAP,Gooch Group Limited,05169F
Gloucester City Council,23UE,Cemeteries,HC300,Major R And M - Vehicles,4010,VK61 HFN,17/09/2015,407903,225,NET,Post Office Ltd,48040J
Gloucester City Council,23UE,Council Streetcare Team,HI101,General Repair/Maint Buildings,3000,PAINT,17/09/2015,407910,29.64,NET,Ppg Architectural Coatings Uk Limited,04709C
Gloucester City Council,23UE,Council Streetcare Team,HI101,Maint Of Grounds - General,3030,BIRD FOOD,17/09/2015,407940,69.25,NET,Angell Pets Ltd,15773P
Gloucester City Council,23UE,Disabled Facilities Grants,CY013,Disabled Facility Grants,0074,GRANT MDF5156,17/09/2015,407972,2349.59,CAP,Tvm Cheltenham Ltd,15826Q
Gloucester City Council,23UE,Docks Complex - Catering Servs,RB110,Charges For Services,9300,food,17/09/2015,407930,8.64,NET,Total Produce Gloucester,12645E
Gloucester City Council,23UE,Docks Complex - Catering Servs,RB110,Charges For Services,9300,food,17/09/2015,407931,79.2,NET,Janes Pantry,24500W
Gloucester City Council,23UE,Docks Complex - Catering Servs,RB110,Charges For Services,9300,FOOD,17/09/2015,407911,72.52,NET,Total Produce Gloucester,12645E
Gloucester City Council,23UE,Docks Complex - Catering Servs,RB110,Charges For Services,9300,FOOD,17/09/2015,407912,38.5,NET,Total Produce Gloucester,12645E
Gloucester City Council,23UE,Docks Complex - Catering Servs,RB110,Charges For Services,9300,FOOD,17/09/2015,407913,62.56,NET,Total Produce Gloucester,12645E
Gloucester City Council,23UE,Docks Complex - Catering Servs,RB110,Charges For Services,9300,FOOD,17/09/2015,407916,43.39,NET,Total Produce Gloucester,12645E
Gloucester City Council,23UE,Docks Complex - Catering Servs,RB110,Charges For Services,9300,FOOD,17/09/2015,407917,33.23,NET,Total Produce Gloucester,12645E
Gloucester City Council,23UE,Docks Complex - Catering Servs,RB110,Charges For Services,9300,FOOD,17/09/2015,407918,8.64,NET,Total Produce Gloucester,12645E
Gloucester City Council,23UE,Docks Complex - Catering Servs,RB110,Charges For Services,9300,FOOD,17/09/2015,407919,22.56,NET,Total Produce Gloucester,12645E
Gloucester City Council,23UE,Docks Complex - Catering Servs,RB110,Charges For Services,9300,FOOD,17/09/2015,407920,18.1,NET,Total Produce Gloucester,12645E
Gloucester City Council,23UE,Docks Complex - Catering Servs,RB110,Charges For Services,9300,FOOD,17/09/2015,407921,33.48,NET,Total Produce Gloucester,12645E
Gloucester City Council,23UE,Docks Complex - Catering Servs,RB110,Charges For Services,9300,FOOD,17/09/2015,407922,53.41,NET,Total Produce Gloucester,12645E
Gloucester City Council,23UE,Docks Complex - Catering Servs,RB110,Charges For Services,9300,FOOD,17/09/2015,407923,31.33,NET,Total Produce Gloucester,12645E
Gloucester City Council,23UE,Docks Complex - Catering Servs,RB110,Charges For Services,9300,FOOD,17/09/2015,407924,23.73,NET,Total Produce Gloucester,12645E
Gloucester City Council,23UE,Docks Complex - Catering Servs,RB110,Charges For Services,9300,FOOD,17/09/2015,407925,8.64,NET,Total Produce Gloucester,12645E
Gloucester City Council,23UE,Docks Complex - Catering Servs,RB110,Charges For Services,9300,FOOD,17/09/2015,407926,8.64,NET,Total Produce Gloucester,12645E
Gloucester City Council,23UE,Docks Complex - Catering Servs,RB110,Charges For Services,9300,FOOD,17/09/2015,407927,94.78,NET,Total Produce Gloucester,12645E
Gloucester City Council,23UE,Docks Complex - Catering Servs,RB110,Charges For Services,9300,FOOD,17/09/2015,407928,15.47,NET,Total Produce Gloucester,12645E
Gloucester City Council,23UE,Docks Complex - Catering Servs,RB110,Charges For Services,9300,FOOD,17/09/2015,407929,36.53,NET,Total Produce Gloucester,12645E
Gloucester City Council,23UE,Docks Complex - Catering Servs,RB110,Charges For Services,9300,FOOD,17/09/2015,407934,20.21,NET,Bidvest Foodservice (3663),55585U
Gloucester City Council,23UE,Docks Complex - Catering Servs,RB110,Charges For Services,9300,FOOD,17/09/2015,407942,106.29,NET,Bidvest Foodservice (3663),55585U
Gloucester City Council,23UE,Docks Complex - Catering Servs,RB110,Charges For Services,9300,FOOD,17/09/2015,407943,283.74,NET,Bidvest Foodservice (3663),55585U
Gloucester City Council,23UE,Docks Complex - Catering Servs,RB110,Charges For Services,9300,FOOD,17/09/2015,407944,194.56,NET,Bidvest Foodservice (3663),55585U
Gloucester City Council,23UE,Docks Complex - Catering Servs,RB110,Charges For Services,9300,FOOD,17/09/2015,407945,357.42,NET,Bidvest Foodservice (3663),55585U
Gloucester City Council,23UE,Green Garden Waste,HI105,Printing,5300,STICKERS,17/09/2015,407858,396,NET,Eurolabel,10252Z
Gloucester City Council,23UE,Guildhall Events,LA200,Printing,5300,WHATS ON BOOKLETS,17/09/2015,407932,1461,NET,Paddock Print,03014H
Gloucester City Council,23UE,Hmo Licences,HE520,Operational Equipment <5000,5012,16 BROOK ST,17/09/2015,407147,310.43,NET,Gloucester Locksmiths,18160C
Gloucester City Council,23UE,Pest Control,HD400,Fees For Services Received,5350,GULL CONTROL,17/09/2015,407817,6669,NET,Mitie Pest Control Ltd,15737U
Gloucester City Council,23UE,Planning Policy,PT300,Basic Pay - Temporary Staff,2751,TEMPORARY STAFF AUG 2015,17/09/2015,407165,2229.55,NET,The Oyster Partnership Limited,14900T
Gloucester City Council,23UE,Planning Policy,PT300,Basic Pay - Temporary Staff,2751,Temporary staff w/e 30/8/15,17/09/2015,407338,2162.98,NET,The Oyster Partnership Limited,14900T
Gloucester City Council,23UE,Retail Market - Landlord,HM300,Maintenance Contract,5352,Maintenance,17/09/2015,406401,283,NET,Mitchells (Gloucester) Ltd,30160U
Gloucester City Council,23UE,Unallocated It,RY525,Contract Payments,0020,EXPENSES 11/08/15,17/09/2015,407946,118.64,CAP,Civica Uk Ltd,10841X
Gloucester City Council,23UE,Business Transformation & Tech,RT700,Fees For Services Received,5350,CCN010 - UPS battery replacement,18/09/2015,407768,14828.84,NET,Civica Uk Ltd,10841X
Gloucester City Council,23UE,Business Transformation & Tech,RT700,Fees For Services Received,5350,CCN017 - network cabling,18/09/2015,407770,2465.49,NET,Civica Uk Ltd,10841X
Gloucester City Council,23UE,Crematorium,HC200,Maint Of Grounds - General,3030,STAKES,18/09/2015,406584,165.83,NET,Millington & Ramstedt Ltd,29815S
Gloucester City Council,23UE,Crematorium,HC200,"Seeds, Trees, Plants, Shrubs",3028,STAKES,18/09/2015,406584,32.4,NET,Millington & Ramstedt Ltd,29815S
Gloucester City Council,23UE,REDACTED,REDACTED,REDACTED,REDACTED,REDACTED,18/09/2015,REDACTED,86,NET,REDACTED,REDACTED
Gloucester City Council,23UE,Development Management,PT200,Fees For Services Received,5350,professional fees re Papa Johns,18/09/2015,407979,160,NET,Albion Planning Consultants Ltd,15484A
Gloucester City Council,23UE,Green Garden Waste,HI105,Basic Pay - Temporary Staff,2751,temporary staff w/e 11/09/15,18/09/2015,407974,1686.19,NET,One To One Recruitment,04752H
Gloucester City Council,23UE,Guildhall Lettings,LA400,Hire Of Equipment,5020,table hire 9/9/15-11/9/15,18/09/2015,408000,47.5,NET,Valley Furniture Hire Ltd,08324P
Gloucester City Council,23UE,Homelessness,CH120,Board And Lodging,5515,VARIOUS TENANTS,18/09/2015,408010,209.24,NET,Kalmwood Ltd,08568G
Gloucester City Council,23UE,Homelessness,CH120,Board And Lodging,5515,VARIOUS TENANTS,18/09/2015,408013,1401.72,NET,Dorchester Guest House,12298D
Gloucester City Council,23UE,Homelessness,CH120,Board And Lodging,5515,VARIOUS TENANTS,18/09/2015,408014,1933.56,NET,James Legge Property (Ltd),07844R
Gloucester City Council,23UE,Homelessness,CH120,Board And Lodging,5515,VARIOUS TENANTS,18/09/2015,408016,1427.69,NET,Carbrey Housing Ltd,11098G
Gloucester City Council,23UE,REDACTED,REDACTED,REDACTED,REDACTED,REDACTED,18/09/2015,REDACTED,393.2,NET,REDACTED,REDACTED
Gloucester City Council,23UE,REDACTED,REDACTED,REDACTED,REDACTED,REDACTED,18/09/2015,REDACTED,2312.2,NET,REDACTED,REDACTED
Gloucester City Council,23UE,REDACTED,REDACTED,REDACTED,REDACTED,REDACTED,18/09/2015,REDACTED,3581.18,NET,REDACTED,REDACTED
Gloucester City Council,23UE,REDACTED,REDACTED,REDACTED,REDACTED,REDACTED,18/09/2015,REDACTED,3227.79,NET,REDACTED,REDACTED
Gloucester City Council,23UE,Homelessness Prevention,CH122,Grants To Advice Centres,7100,Nightstop service 16SEP15  to 31MAR16,18/09/2015,407976,3500,NET,Gloucestershire Nightstop,56573S
Gloucester City Council,23UE,Housing Works In Default,HD500,Clearance And Cleansing Fees,5384,sign removal,18/09/2015,406582,85,NET,Rj Contracting (Environmental) Ltd,07429H
Gloucester City Council,23UE,Retail Market - Landlord,HM300,Window Cleaning,3610,SEP15 window cleaning,18/09/2015,407975,140,NET,Cornwall Cleaning Services,14050A
Gloucester City Council,23UE,Vehicles,RS140,Fuel,4012,Fuel,18/09/2015,407999,219.56,NET,Allstar Business Solutions Ltd (Arval),06594A
Gloucester City Council,23UE,Business Transformation & Tech,RT700,Computer Hardware Maintenance,5426,LEASE SEP-DEC 2015,21/09/2015,407422,315,NET,Stanford Marsh Ltd,51139M
Gloucester City Council,23UE,Business Transformation & Tech,RT700,Computer Hardware Maintenance,5426,LEASE SEP-DEC 2015,21/09/2015,407423,210,NET,Stanford Marsh Ltd,51139M
Gloucester City Council,23UE,Business Transformation & Tech,RT700,Fees For Services Received,5350,CCN013 - corporate wireless,21/09/2015,407769,9502.37,NET,Civica Uk Ltd,10841X
Gloucester City Council,23UE,Cemeteries,HC300,Clothing,5200,work clothes,21/09/2015,407978,73.75,NET,Safpro Industrial Supply Co,39190W
Gloucester City Council,23UE,Client Revs & Bens Contract,RT240,Bailiffs Fees,5368,VAT due on fees,21/09/2015,408038,0,NET,Bristow & Sutor,05450M
Gloucester City Council,23UE,Contact Centre,RB300,Postages,5400,ACCT 0252446000 W/E 03/09/15,21/09/2015,407947,1247.99,NET,Royal Mail S.Wales & South West,35830S
Gloucester City Council,23UE,Contact Centre,RB300,Vocational Training,2970,Coms & Sols qualification,21/09/2015,408042,105,NET,Institute Of Customer Service,03321V
Gloucester City Council,23UE,Contact Centre,RB300,Vocational Training,2970,communications training,21/09/2015,408043,70,NET,Institute Of Customer Service,03321V
Gloucester City Council,23UE,Council Streetcare Team,HI101,Window Cleaning,3610,WINDOW CLEANING,21/09/2015,407941,130,NET,Poles Apart Window Cleaning,11636R
Gloucester City Council,23UE,Disabled Facilities Grants,CY013,Disabled Facility Grants,0074,MDF5083,21/09/2015,408040,12925.98,CAP,Mears Home Improvement Ltd,00096G
Gloucester City Council,23UE,Disabled Facilities Grants,CY013,Disabled Facility Grants,0074,MDF5157,21/09/2015,408041,4088,CAP,Tpg Disableaids,51324R
Gloucester City Council,23UE,Homelessness Prevention,CH122,Basic Pay - Temporary Staff,2751,temporary staff w/e 13/9/15,21/09/2015,408046,795.5,NET,Greenacre Recruitment Ltd,15817V
Gloucester City Council,23UE,Off Street Car Parks,PP110,Rents,3200,Great Western Rd car park rent OCT-DEC15,21/09/2015,408036,118.75,NET,Telereal Services Ltd,15121I
Gloucester City Council,23UE,Off Street Car Parks,PP110,Rents,3200,Rent Jun - Sept 2015,21/09/2015,404170,118.75,NET,Telereal Services Ltd,15121I
Gloucester City Council,23UE,Abbeymead Rovers Fc (Atg),LY072,Contract Payments,0020,CLOCK TOWER PARK,22/09/2015,408074,3009,CAP,Greenfields Garden Services Ltd,48130G
Gloucester City Council,23UE,Abbeymead Rovers Fc (Atg),LY072,Contract Payments,0020,GLEVUM WAY,22/09/2015,408087,2500,CAP,Greenfields Garden Services Ltd,48130G
Gloucester City Council,23UE,REDACTED,REDACTED,REDACTED,REDACTED,REDACTED,22/09/2015,REDACTED,12,NET,REDACTED,REDACTED
Gloucester City Council,23UE,REDACTED,REDACTED,REDACTED,REDACTED,REDACTED,22/09/2015,REDACTED,4458.68,CAP,REDACTED,REDACTED
Gloucester City Council,23UE,Cherry & White Market Gazebos,RY218,Contract Payments,0020,kits,22/09/2015,408079,3760,CAP,City B Group,03452C
Gloucester City Council,23UE,Cherry & White Market Gazebos,RY218,Contract Payments,0020,KITS,22/09/2015,408078,6760,CAP,City B Group,03452C
Gloucester City Council,23UE,City Museum And Art Gallery,LM200,Advertising And Publicity,5702,ADVERT 22/08/15,22/09/2015,407183,5,NET,Local World Ltd,08556P
Gloucester City Council,23UE,City Museum And Art Gallery,LM200,Overtime - Receptionists,1453,DONATION BOXES,22/09/2015,407536,3145,NET,Donationboxes.Co.Uk Ltd,15798X
Gloucester City Council,23UE,Civica Admin Charges,RT105,Postages,5400,acct 0870585007 post,22/09/2015,407785,1245.58,NET,Royal Mail S.Wales & South West,35830S
Gloucester City Council,23UE,Client Revs & Bens Contract,RT240,Fees For Services Received,5350,crn2015-15 RTI HB implementation,22/09/2015,408059,5247,NET,Civica Uk Ltd,10841X
Gloucester City Council,23UE,Client Revs & Bens Contract,RT240,Fees For Services Received,5350,CRN2015-G07 UNIVERSAL CREDIT IMP,22/09/2015,408058,8800,NET,Civica Uk Ltd,10841X
Gloucester City Council,23UE,Contact Centre,RB300,Basic Pay -Admin /Prof Staff,2601,TEMPORARY STAFF W/E 13/09/15,22/09/2015,408084,630,NET,Morgan Hunt Uk Ltd,04451S
Gloucester City Council,23UE,Countryside Unit,LP201,General Repair/Maint Buildings,3000,"BARRIER TAPE, TOOLS & PARTS",22/09/2015,408065,136.71,NET,Screwfix Direct,54672H
Gloucester City Council,23UE,Countryside Unit,LP201,Maint Of Grounds - General,3030,postcrete & lighter cubes,22/09/2015,408066,22.76,NET,B&Q Trade Account,06346Y
Gloucester City Council,23UE,Financial Services,RT200,Fees For Services Received,5350,VAT ONLY INVOICE,22/09/2015,402831,0,NET,Weightmans Llp,15485E
Gloucester City Council,23UE,Folk Museum,LM210,Publications For Sale,5064,goods for resale,22/09/2015,407270,248.62,NET,Half Moon Bay Ltd,08240F
Gloucester City Council,23UE,General Drainage Works,PY241,Contract Payments,0020,DINGLEWELL,22/09/2015,408067,821.17,CAP,Whitehouse Construction Ltd,15498N
Gloucester City Council,23UE,General Drainage Works,PY241,Contract Payments,0020,GRANGE RD,22/09/2015,408068,250,CAP,Rj Contracting (Environmental) Ltd,07429H
Gloucester City Council,23UE,REDACTED,REDACTED,REDACTED,REDACTED,REDACTED,22/09/2015,REDACTED,100,NET,REDACTED,REDACTED
Gloucester City Council,23UE,REDACTED,REDACTED,REDACTED,REDACTED,REDACTED,22/09/2015,REDACTED,383.44,NET,REDACTED,REDACTED
Gloucester City Council,23UE,REDACTED,REDACTED,REDACTED,REDACTED,REDACTED,22/09/2015,REDACTED,630,NET,REDACTED,REDACTED
Gloucester City Council,23UE,Investment Property,RB500,Contracts,3720,Station Road - S/C on account,22/09/2015,405869,2373.75,NET,Alder King,15624J
Gloucester City Council,23UE,Investment Property,RB500,Contracts,3720,Station Road - S/C on account,22/09/2015,405870,3108.5,NET,Alder King,15624J
Gloucester City Council,23UE,Investment Property,RB500,Contracts,3720,Station Road - S/C on account,22/09/2015,405872,194,NET,Alder King,15624J
Gloucester City Council,23UE,Investment Property,RB500,Contracts,3720,Kings House - S/C on account,22/09/2015,405873,2460.25,NET,Alder King,15830U
Gloucester City Council,23UE,Investment Property,RB500,Contracts,3720,S/C on account quarterly in advance,22/09/2015,405868,3876.25,NET,Alder King,15829T
Gloucester City Council,23UE,Investment Property,RB500,Repair/Maint Of Fixed Plant,3006,GLOUCESTER MUSEUM DOOR SERVICE,22/09/2015,408062,315,NET,Pro Door Ltd,04760C
Gloucester City Council,23UE,Northwarehouse,RB150,Lift Maintenance,3051,North Warehouse,22/09/2015,404597,689.62,NET,Schindler Ltd,06826C
Gloucester City Council,23UE,Retail Market - Landlord,HM300,General Repair/Maint Buildings,3000,EASTGATE MARKET,22/09/2015,408085,2328,NET,Cornwall Cleaning Services,14050A
Gloucester City Council,23UE,Rugby World Cup,LT450,Hire Of Equipment,5020,marquee,22/09/2015,408086,1328.25,NET,Moben (Cheltenham) Limited,15845P
Gloucester City Council,23UE,Business Transformation & Tech,RT700,Fees For Services Received,5350,CCN 016,23/09/2015,408144,26566,NET,Civica Uk Ltd,10841X
Gloucester City Council,23UE,Cemeteries,HC300,Operational Materials,5070,"EDGING SHEARS, FINISHING TROWEL",23/09/2015,408064,59.15,NET,Screwfix Direct,54672H
Gloucester City Council,23UE,Cems/Crems Admin,HC100,Printing,5300,DL Cremation certificate envelopes,23/09/2015,408131,261,NET,Alpha Colour Printers Ltd,00945B
Gloucester City Council,23UE,Client Revs & Bens Contract,RT240,Fees For Services Received,5350,CRN2015-G10 NEW HOMES BONUS,23/09/2015,408060,17500,NET,Civica Uk Ltd,10841X
Gloucester City Council,23UE,REDACTED,REDACTED,REDACTED,REDACTED,REDACTED,23/09/2015,REDACTED,140,NET,REDACTED,REDACTED
Gloucester City Council,23UE,REDACTED,REDACTED,REDACTED,REDACTED,REDACTED,23/09/2015,REDACTED,700,NET,REDACTED,REDACTED
Gloucester City Council,23UE,Environmental Planning,LM340,Operational Materials,5070,Climbing wall for 28/6/15,23/09/2015,408142,412.5,NET,The Warehouse Climbing Centre,11162S
Gloucester City Council,23UE,Environmental Planning,LM340,Operational Materials,5070,climbing wall for 28/6/15 deposit,23/09/2015,408139,137.5,NET,The Warehouse Climbing Centre,11162S
Gloucester City Council,23UE,Equalities,EH102,Fees For Services Received,5350,part funding for Cultural Fayre,23/09/2015,408137,250,NET,Barton & Tredworth Neighbourhood Partnership,09679L
Gloucester City Council,23UE,Flooding And Drainage,HE306,Maint Of Grounds - General,3030,Milton Ave works,23/09/2015,408136,270,NET,Rdb Safety Boat Ltd,13507J
Gloucester City Council,23UE,Flooding And Drainage,HE306,Maint Of Grounds - General,3030,Saintbridge balance pond works,23/09/2015,408138,135,NET,Rdb Safety Boat Ltd,13507J
Gloucester City Council,23UE,Grants To Voluntary Sector,FG100,Members Allocation Fund,7100F,BARTON & TREDWORTH,23/09/2015,408075,465,NET,Greenfields Garden Services Ltd,48130G
Gloucester City Council,23UE,Green Transport Policy,PJ130,Other Minor Supplies Services,5590,Dr Bike service 3/9/15,23/09/2015,408140,275,NET,Gloucestershire Bike Project Cic,13266H
Gloucester City Council,23UE,Homelessness,CH120,Rent In Advance,5516,REDACTED,23/09/2015,408146,489.44,NET,Godsell & Co Ltd,50626RV
Gloucester City Council,23UE,Homelessness,CH120,Rent In Advance,5516,REDACTED,23/09/2015,408126,368.2,NET,Barton & Tredworth Developments Ltd,58165T
Gloucester City Council,23UE,Homelessness Prevention,CH122,Fees For Services Received,5350,REDACTED,23/09/2015,408146,530,NET,Godsell & Co Ltd,50626RV
Gloucester City Council,23UE,Homelessness Prevention,CH122,Fees For Services Received,5350,REDACTED,23/09/2015,408126,400,NET,Barton & Tredworth Developments Ltd,58165T
Gloucester City Council,23UE,Human Resources,EH100,Fees For Services Received,5350,PAYROLL AUG 2015,23/09/2015,407684,2628.65,NET,Gloucestershire County Council,18650D
Gloucester City Council,23UE,Interpretation & Signage,GY012,Contract Payments,0020,KIMBROSE WAY,23/09/2015,407864,750,CAP,C J Hinde And Sons,13947Z
Gloucester City Council,23UE,Investment Property,RB500,Contracts,3720,Station Road - S/C on account,23/09/2015,405871,316.75,NET,Alder King,15624J
Gloucester City Council,23UE,Investment Property,RB500,Contracts,3720,BENTINCK HOUSE,23/09/2015,407846,3876.25,NET,Alder King,15829T
Gloucester City Council,23UE,Investment Property,RB500,General Repair/Maint Buildings,3000,CALLOUT 20/08/15,23/09/2015,407458,278,NET,Airvent Systems Limited,51073T
Gloucester City Council,23UE,Investment Property,RB500,General Repair/Maint Buildings,3000,JULY 2015,23/09/2015,407645,2793.89,NET,Rf Gardiner Limited,12299B
Gloucester City Council,23UE,Investment Property,RB500,General Repair/Maint Buildings,3000,re 24 Awdry Way works,23/09/2015,408141,490,NET,T & P Franklin & Sons Ltd,16150A
Gloucester City Council,23UE,Investment Property,RB500,Repair/Maint Of Fixed Plant,3006,VISIT 27/08/15,23/09/2015,407428,676.5,NET,Airvent Systems Limited,51073T
Gloucester City Council,23UE,Northwarehouse,RB150,Window Cleaning,3610,External Window Cleaning,23/09/2015,405860,225,NET,H & W Facilities Management Limited,09142N
Gloucester City Council,23UE,Public Health,HD200,Other Minor Supplies Services,5590,extra hours for community builder,23/09/2015,408143,4539.94,NET,Gl Communities,09535X
Gloucester City Council,23UE,Retail Market - Landlord,HM300,Cleaning / Domestic Equipment,5011,SEPT 2015,23/09/2015,407541,18.93,NET,Initial Washroom Solutions,06143R
Gloucester City Council,23UE,Retail Market - Landlord,HM300,Operational Equipment <5000,5012,compactor rental SEP15,23/09/2015,407344,280.56,NET,System Rental Uk Ltd,03239E
Gloucester City Council,23UE,Advance City Attractions,LT109,Materials For Sale,5080,TICKETS,24/09/2015,406390,69.79,NET,Warwick Castle,15215G
Gloucester City Council,23UE,Advance City Attractions,LT109,Sale Of Goods And Services,9230,TICKETS,24/09/2015,406390,-13.54,NET,Warwick Castle,15215G
Gloucester City Council,23UE,Allotments,HI104,Water Supply,3400,ACCT 7890105225,24/09/2015,406598,2880.92,NET,Severn Trent Water,01823H
Gloucester City Council,23UE,Blackfriars,LA609,Water Supply,3400,ACCT 7890105225,24/09/2015,406598,272.8,NET,Severn Trent Water,01823H
Gloucester City Council,23UE,Bus Station,RB400,Water Supply,3400,ACCT 7890105225,24/09/2015,406598,174.81,NET,Severn Trent Water,01823H
Gloucester City Council,23UE,Bus Station,RB400,Water Supply,3400,ACCT 7890105225,24/09/2015,407856,174.81,NET,Severn Trent Water,01823H
Gloucester City Council,23UE,City Museum And Art Gallery,LM200,Publications For Sale,5064,Copeland/Roman Gloucestershire,24/09/2015,405908,77.96,NET,The History Press Ltd,07144D
Gloucester City Council,23UE,City Museum And Art Gallery,LM200,Publications For Sale,5064,The Kings Grave,24/09/2015,406514,2000,NET,Bookpoint Ltd,52241L
Gloucester City Council,23UE,City Museum And Art Gallery,LM200,Water Supply,3400,ACCT 7890105225,24/09/2015,407856,683.32,NET,Severn Trent Water,01823H
Gloucester City Council,23UE,Council Streetcare Team,HI101,Water Supply,3400,ACCT 7890105225,24/09/2015,406598,107.76,NET,Severn Trent Water,01823H
Gloucester City Council,23UE,Council Streetcare Team,HI101,Water Supply,3400,ACCT 7890105225,24/09/2015,407856,714.05,NET,Severn Trent Water,01823H
Gloucester City Council,23UE,Countryside Unit,LP201,Water Supply,3400,ACCT 7890105225,24/09/2015,406598,67.63,NET,Severn Trent Water,01823H
Gloucester City Council,23UE,Crematorium,HC200,Water Supply,3400,ACCT 7890105225,24/09/2015,406598,1364.79,NET,Severn Trent Water,01823H
Gloucester City Council,23UE,Crematorium,HC200,Water Supply,3400,ACCT 7890105225,24/09/2015,407856,38.96,NET,Severn Trent Water,01823H
Gloucester City Council,23UE,Docks Complex - Services,RB100,Water Supply,3400,ACCT 7890105225,24/09/2015,406598,1330.28,NET,Severn Trent Water,01823H
Gloucester City Council,23UE,Folk Museum,LM210,Water Supply,3400,ACCT 7890105225,24/09/2015,406598,728.22,NET,Severn Trent Water,01823H
Gloucester City Council,23UE,Gloucester Guildhall,LA100,Water Supply,3400,ACCT 7890105225,24/09/2015,406598,316.47,NET,Severn Trent Water,01823H
Gloucester City Council,23UE,REDACTED,REDACTED,REDACTED,REDACTED,REDACTED,24/09/2015,REDACTED,120,NET,REDACTED,REDACTED
Gloucester City Council,23UE,REDACTED,REDACTED,REDACTED,REDACTED,REDACTED,24/09/2015,REDACTED,450,NET,REDACTED,REDACTED
Gloucester City Council,23UE,REDACTED,REDACTED,REDACTED,REDACTED,REDACTED,24/09/2015,REDACTED,272.72,NET,REDACTED,REDACTED
Gloucester City Council,23UE,REDACTED,REDACTED,REDACTED,REDACTED,REDACTED,24/09/2015,REDACTED,306.88,NET,REDACTED,REDACTED
Gloucester City Council,23UE,REDACTED,REDACTED,REDACTED,REDACTED,REDACTED,24/09/2015,REDACTED,272.72,NET,REDACTED,REDACTED
Gloucester City Council,23UE,REDACTED,REDACTED,REDACTED,REDACTED,REDACTED,24/09/2015,REDACTED,350,NET,REDACTED,REDACTED
Gloucester City Council,23UE,REDACTED,REDACTED,REDACTED,REDACTED,REDACTED,24/09/2015,REDACTED,500,NET,REDACTED,REDACTED
Gloucester City Council,23UE,REDACTED,REDACTED,REDACTED,REDACTED,REDACTED,24/09/2015,REDACTED,350,NET,REDACTED,REDACTED
Gloucester City Council,23UE,Investment Property,RB500,Contracts,3720,GROSVENOR HOUSE,24/09/2015,407850,3108.5,NET,Alder King,15624J
Gloucester City Council,23UE,Investment Property,RB500,Water Supply,3400,ACCT 7890105225,24/09/2015,406598,386.51,NET,Severn Trent Water,01823H
Gloucester City Council,23UE,Investment Property,RB500,Water Supply,3400,ACCT 7890105225,24/09/2015,407856,822.79,NET,Severn Trent Water,01823H
Gloucester City Council,23UE,Off Street Car Parks,PP110,Water Supply,3400,ACCT 7890105225,24/09/2015,406598,2936.22,NET,Severn Trent Water,01823H
Gloucester City Council,23UE,Off Street Car Parks,PP110,Water Supply,3400,ACCT 7890105225,24/09/2015,407856,1751.25,NET,Severn Trent Water,01823H
Gloucester City Council,23UE,Public Conveniences (Client),HI400,Water Supply,3400,ACCT 7890105225,24/09/2015,406598,740.26,NET,Severn Trent Water,01823H
Gloucester City Council,23UE,Public Conveniences (Client),HI400,Water Supply,3400,ACCT 7890105225,24/09/2015,407856,930.51,NET,Severn Trent Water,01823H
Gloucester City Council,23UE,Shopmobility,PE200,Water Supply,3400,ACCT 7890105225,24/09/2015,407856,178.18,NET,Severn Trent Water,01823H
Gloucester City Council,23UE,Tourism Marketing,LT100,Water Supply,3400,ACCT 7890105225,24/09/2015,406598,109.3,NET,Severn Trent Water,01823H
Gloucester City Council,23UE,Utilities,PT502,Electricity Supply,3110,UTILITIES TO SEPT 2015,24/09/2015,407914,13376.11,NET,West Mercia Energy,11669Z
Gloucester City Council,23UE,Utilities,PT502,Gas Supply,3100,UTILITIES TO SEPT 2015,24/09/2015,407914,1162.24,NET,West Mercia Energy,11669Z
Gloucester City Council,23UE,Advance City Attractions,LT109,Materials For Sale,5080,TICKETS,25/09/2015,408243,91.09,NET,Warwick Castle,15215G
Gloucester City Council,23UE,Advance City Attractions,LT109,Sale Of Goods And Services,9230,TICKETS,25/09/2015,408243,-16.83,NET,Warwick Castle,15215G
Gloucester City Council,23UE,Asset Management,RS300,Basic Pay - Temporary Staff,2751,AUG 2015,25/09/2015,408198,1223.95,NET,Ecostep Ltd,15511Z
Gloucester City Council,23UE,Cemeteries,HC300,Clothing,5200,CLOTHING,25/09/2015,408195,31.1,NET,Safpro Industrial Supply Co,39190W
Gloucester City Council,23UE,Cemeteries,HC300,Clothing,5200,CLOTHING,25/09/2015,408196,64.35,NET,Safpro Industrial Supply Co,39190W
Gloucester City Council,23UE,Cemeteries,HC300,Operational Materials,5070,clothing,25/09/2015,408197,46.6,NET,Safpro Industrial Supply Co,39190W
Gloucester City Council,23UE,Cemeteries,HC300,Repair/Maint Of Monuments,3004,REGISTER,25/09/2015,408175,520,NET,Shaw & Sons Ltd,40310F
Gloucester City Council,23UE,Cemeteries,HC300,Routine R And M - Vehicles,4011,SERVICE,25/09/2015,408193,30,NET,Garden Machinery Gloucester,55641K
Gloucester City Council,23UE,Cemeteries,HC300,Tyres,4014,BUGGY,25/09/2015,408199,22,NET,A T S Euromaster Ltd,01860B
Gloucester City Council,23UE,Client Revs & Bens Contract,RT240,Fees For Services Received,5350,COURT COSTS,25/09/2015,408214,26591.71,NET,Civica Uk Ltd,10841X
Gloucester City Council,23UE,Client Revs & Bens Contract,RT240,Printing,5300,LEAFLETS,25/09/2015,408213,1050,NET,Civica Uk Ltd,10841X
Gloucester City Council,23UE,Council Streetcare Team,HI101,General Repair/Maint Buildings,3000,ARTWORK,25/09/2015,408311,150,NET,Kelly Noble Ilustration,15815Z
Gloucester City Council,23UE,REDACTED,REDACTED,REDACTED,REDACTED,REDACTED,25/09/2015,REDACTED,150,NET,REDACTED,REDACTED
Gloucester City Council,23UE,REDACTED,REDACTED,REDACTED,REDACTED,REDACTED,25/09/2015,REDACTED,150,NET,REDACTED,REDACTED
Gloucester City Council,23UE,Countryside Unit,LP201,Contract Cleaning,3620,CLEANING,25/09/2015,408220,130,NET,Cv Fisher Cleaning Services,14907C
Gloucester City Council,23UE,Countryside Unit,LP201,Maint Of Grounds - General,3030,hardware,25/09/2015,408223,9.55,NET,B&Q Trade Account,06346Y
Gloucester City Council,23UE,Countryside Unit,LP201,Routine R And M - Vehicles,4011,hardware,25/09/2015,408222,14.99,NET,Screwfix Direct,54672H
Gloucester City Council,23UE,Crematorium,HC200,Repair/Maint Of Fixed Plant,3006,WASTE,25/09/2015,408194,1430.25,NET,Facultatieve Technologies Ltd,51210H
Gloucester City Council,23UE,Development Management,PT200,Advertising And Publicity,5702,ADVERT 17/09/15,25/09/2015,408176,175.3,NET,Local World Ltd,08556P
Gloucester City Council,23UE,Equalities,EH102,Other Minor Supplies Services,5590,PAINT,25/09/2015,408267,500,NET,Upfest,15828P
Gloucester City Council,23UE,Grants To Voluntary Sector,FG100,Members Allocation Fund,7100F,GRANT,25/09/2015,408247,650.56,NET,St James The Apostle Quedgeley And Kingsway,15479T
Gloucester City Council,23UE,REDACTED,REDACTED,REDACTED,REDACTED,REDACTED,25/09/2015,REDACTED,300,NET,REDACTED,REDACTED
Gloucester City Council,23UE,REDACTED,REDACTED,REDACTED,REDACTED,REDACTED,25/09/2015,REDACTED,200,NET,REDACTED,REDACTED
Gloucester City Council,23UE,REDACTED,REDACTED,REDACTED,REDACTED,REDACTED,25/09/2015,REDACTED,75,NET,REDACTED,REDACTED
Gloucester City Council,23UE,REDACTED,REDACTED,REDACTED,REDACTED,REDACTED,25/09/2015,REDACTED,150,NET,REDACTED,REDACTED
Gloucester City Council,23UE,REDACTED,REDACTED,REDACTED,REDACTED,REDACTED,25/09/2015,REDACTED,150,NET,REDACTED,REDACTED
Gloucester City Council,23UE,REDACTED,REDACTED,REDACTED,REDACTED,REDACTED,25/09/2015,REDACTED,150,NET,REDACTED,REDACTED
Gloucester City Council,23UE,REDACTED,REDACTED,REDACTED,REDACTED,REDACTED,25/09/2015,REDACTED,100,NET,REDACTED,REDACTED
Gloucester City Council,23UE,REDACTED,REDACTED,REDACTED,REDACTED,REDACTED,25/09/2015,REDACTED,150,NET,REDACTED,REDACTED
Gloucester City Council,23UE,REDACTED,REDACTED,REDACTED,REDACTED,REDACTED,25/09/2015,REDACTED,600,NET,REDACTED,REDACTED
Gloucester City Council,23UE,REDACTED,REDACTED,REDACTED,REDACTED,REDACTED,25/09/2015,REDACTED,50,NET,REDACTED,REDACTED
Gloucester City Council,23UE,REDACTED,REDACTED,REDACTED,REDACTED,REDACTED,25/09/2015,REDACTED,150,NET,REDACTED,REDACTED
Gloucester City Council,23UE,REDACTED,REDACTED,REDACTED,REDACTED,REDACTED,25/09/2015,REDACTED,100,NET,REDACTED,REDACTED
Gloucester City Council,23UE,REDACTED,REDACTED,REDACTED,REDACTED,REDACTED,25/09/2015,REDACTED,300,NET,REDACTED,REDACTED
Gloucester City Council,23UE,REDACTED,REDACTED,REDACTED,REDACTED,REDACTED,25/09/2015,REDACTED,50,NET,REDACTED,REDACTED
Gloucester City Council,23UE,REDACTED,REDACTED,REDACTED,REDACTED,REDACTED,25/09/2015,REDACTED,100,NET,REDACTED,REDACTED
Gloucester City Council,23UE,REDACTED,REDACTED,REDACTED,REDACTED,REDACTED,25/09/2015,REDACTED,550,NET,REDACTED,REDACTED
Gloucester City Council,23UE,REDACTED,REDACTED,REDACTED,REDACTED,REDACTED,25/09/2015,REDACTED,100,NET,REDACTED,REDACTED
Gloucester City Council,23UE,REDACTED,REDACTED,REDACTED,REDACTED,REDACTED,25/09/2015,REDACTED,300,NET,REDACTED,REDACTED
Gloucester City Council,23UE,REDACTED,REDACTED,REDACTED,REDACTED,REDACTED,25/09/2015,REDACTED,200,NET,REDACTED,REDACTED
Gloucester City Council,23UE,REDACTED,REDACTED,REDACTED,REDACTED,REDACTED,25/09/2015,REDACTED,50,NET,REDACTED,REDACTED
Gloucester City Council,23UE,REDACTED,REDACTED,REDACTED,REDACTED,REDACTED,25/09/2015,REDACTED,130,NET,REDACTED,REDACTED
Gloucester City Council,23UE,REDACTED,REDACTED,REDACTED,REDACTED,REDACTED,25/09/2015,REDACTED,120,NET,REDACTED,REDACTED
Gloucester City Council,23UE,REDACTED,REDACTED,REDACTED,REDACTED,REDACTED,25/09/2015,REDACTED,105,NET,REDACTED,REDACTED
Gloucester City Council,23UE,Homelessness Prevention,CH122,Basic Pay - Temporary Staff,2751,Temporary staff W/E 06/09/15,25/09/2015,408186,348.3,NET,Greenacre Recruitment Ltd,15817V
Gloucester City Council,23UE,Human Resources,EH100,Training Course Fees,5367,Human Resource management training,25/09/2015,408200,2625,NET,University Of Gloucestershire,57991H
Gloucester City Council,23UE,Investment Property,RB500,Contracts,3720,GROSVENOR HOUSE,25/09/2015,407847,194,NET,Alder King,15624J
Gloucester City Council,23UE,Investment Property,RB500,Contracts,3720,GROSVENOR HOUSE,25/09/2015,407848,316.75,NET,Alder King,15624J
Gloucester City Council,23UE,Investment Property,RB500,Contracts,3720,GROSVENOR HOUSE,25/09/2015,407849,2373.75,NET,Alder King,15624J
Gloucester City Council,23UE,REDACTED,REDACTED,REDACTED,REDACTED,REDACTED,25/09/2015,REDACTED,940,NET,REDACTED,REDACTED
Gloucester City Council,23UE,REDACTED,REDACTED,REDACTED,REDACTED,REDACTED,25/09/2015,REDACTED,530,NET,REDACTED,REDACTED
Gloucester City Council,23UE,Investment Property,RB500,Non Domestic Rates,3300,VOA APPEALS,25/09/2015,408190,40061.45,NET,Gva Grimley,56359W
Gloucester City Council,23UE,Investment Property,RB500,Non Domestic Rates,3300,VOA APPEALS,25/09/2015,408191,7312.5,NET,Gva Grimley,56359W
Gloucester City Council,23UE,Organisational Health,RC160,Fees For Services Received,5350,OCC HEALTH,25/09/2015,408177,292.17,NET,Industrial Medical & Safety Services Ltd,10668L
Gloucester City Council,23UE,The Arbor,HC501,Catering Provisions -Food,5110,FOOD,25/09/2015,408178,18.86,NET,Janes Pantry,24500W
Gloucester City Council,23UE,Tic Rovercard Sales,LT101,Materials For Sale,5080,AUG 2015,25/09/2015,408183,12452.7,NET,Stagecoach Services Ltd,56554W
Gloucester City Council,23UE,Tic Rovercard Sales,LT101,Sale Of Goods And Services,9230,AUG 2015,25/09/2015,408183,-1037.72,NET,Stagecoach Services Ltd,56554W
Gloucester City Council,23UE,REDACTED,REDACTED,REDACTED,REDACTED,REDACTED,25/09/2015,REDACTED,99.25,NET,REDACTED,REDACTED
Gloucester City Council,23UE,Tic Trading,LT110,Trade Refuse Sacks,5040,SACKS,25/09/2015,408203,1848.8,NET,Enterprise (Aol) Ltd,06695G
Gloucester City Council,23UE,Tourism Marketing,LT100,Hospitality,5122,DRINK,25/09/2015,408184,119,NET,Gloucester Brewery,13373F
Gloucester City Council,23UE,Aspire Admin Charges,LC105,Fees For Services Received,5350,GCC Staff Aspire Membership,28/09/2015,408127,551,NET,Aspire Sports & Cultural Trust,08135V
Gloucester City Council,23UE,Cemeteries,HC300,Routine R And M - Vehicles,4011,MOT,28/09/2015,408317,45,NET,123 Car & Commercial,07651E
Gloucester City Council,23UE,Client Revs & Bens Contract,RT240,Bailiffs Fees,5368,CTAX FEES,28/09/2015,408325,10.97,NET,Bristow & Sutor,05450M
Gloucester City Council,23UE,Client Revs & Bens Contract,RT240,Bailiffs Fees,5368,vat only invoice,28/09/2015,408188,0,NET,Phoenix Commercial Collections Ltd,13435J
Gloucester City Council,23UE,Client Revs & Bens Contract,RT240,Bailiffs Fees,5368,vat only invoice,28/09/2015,408189,0,NET,Phoenix Commercial Collections Ltd,13435J
Gloucester City Council,23UE,Client Revs & Bens Contract,RT240,Bailiffs Fees,5368,VAT ONLY INVOICE,28/09/2015,408187,0,NET,Phoenix Commercial Collections Ltd,13435J
Gloucester City Council,23UE,Client Revs & Bens Contract,RT240,Bailiffs Fees,5368,VAT ONLY INVOICE,28/09/2015,408323,0,NET,Bristow & Sutor,05450M
Gloucester City Council,23UE,Client Revs & Bens Contract,RT240,Bailiffs Fees,5368,VAT ONLY INVOICE,28/09/2015,408324,0,NET,Bristow & Sutor,05450M
Gloucester City Council,23UE,Coll Fund Revenue Account,ZC100,County Council Precept,7460,precept payment October 2015,28/09/2015,408392,3893978.2,NET,Gloucestershire County Council,18650D
Gloucester City Council,23UE,Coll Fund Revenue Account,ZC100,Nndr Central Share,7474,BRR POOLING PAYMENT BRR7,28/09/2015,408395,421339,NET,Gloucestershire County Council,18650D
Gloucester City Council,23UE,Coll Fund Revenue Account,ZC100,Nndr Tariff,7473,BRR POOLING PAYMENT BRR7,28/09/2015,408394,1320307,NET,Stroud District Council,74737T
Gloucester City Council,23UE,Coll Fund Revenue Account,ZC100,Police Precept,7461,precept payment October 2015,28/09/2015,408391,741766.3,NET,"Police & Crime Commissioner, Gloucestershire",49521B
Gloucester City Council,23UE,Contact Centre,RB300,Printing,5300,STATIONERY,28/09/2015,408337,70.29,NET,Lyreco Uk Ltd,11746G
Gloucester City Council,23UE,Contact Centre,RB300,Printing,5300,STATIONERY,28/09/2015,408338,5.96,NET,Lyreco Uk Ltd,11746G
Gloucester City Council,23UE,Contact Centre,RB300,Stationery,5302,PAPER,28/09/2015,408335,451,NET,Premier Paper Group Ltd,09166Y
Gloucester City Council,23UE,Contact Centre,RB300,Stationery,5302,STATIONERY,28/09/2015,408336,408.99,NET,Lyreco Uk Ltd,11746G
Gloucester City Council,23UE,Contact Centre,RB300,Stationery,5302,STATIONERY,28/09/2015,408339,12.71,NET,Lyreco Uk Ltd,11746G
Gloucester City Council,23UE,Contact Centre,RB300,Stationery,5302,STATIONERY,28/09/2015,408358,34.33,NET,Lyreco Uk Ltd,11746G
Gloucester City Council,23UE,Contact Centre,RB300,Stationery,5302,STATIONERY,28/09/2015,408359,4.22,NET,Lyreco Uk Ltd,11746G
Gloucester City Council,23UE,Contact Centre,RB300,Stationery,5302,STATIONERY,28/09/2015,408360,61.38,NET,Lyreco Uk Ltd,11746G
Gloucester City Council,23UE,Contact Centre,RB300,Stationery,5302,STATIONERY,28/09/2015,408361,11.16,NET,Lyreco Uk Ltd,11746G
Gloucester City Council,23UE,Contact Centre,RB300,Stationery,5302,STATIONERY PRICE DIFF,28/09/2015,408363,72.69,NET,Lyreco Uk Ltd,11746G
Gloucester City Council,23UE,Contact Centre,RB300,Stationery,5302,STATIONERY PRICE DIFF,28/09/2015,408364,2.12,NET,Lyreco Uk Ltd,11746G
Gloucester City Council,23UE,Contact Centre,RB300,Stationery,5302,STATIONERY PRICE DIFF,28/09/2015,408365,7.27,NET,Lyreco Uk Ltd,11746G
Gloucester City Council,23UE,Crematorium,HC200,Cleaning Materials,3600,OCT - DEC 2015,28/09/2015,408331,28.41,NET,Initial Washroom Solutions,24219P
Gloucester City Council,23UE,Employers Pension Contribs,ZR355,Pension Contribs Incl Backf,2901,pension deficit for GCC,28/09/2015,408393,217666.66,NET,Gloucestershire County Council,10614L
Gloucester City Council,23UE,REDACTED,REDACTED,REDACTED,REDACTED,REDACTED,28/09/2015,REDACTED,1000,NET,REDACTED,REDACTED
Gloucester City Council,23UE,Guildhall Sound Desks,LY059,Contract Payments,0020,CASE,28/09/2015,408341,546.18,CAP,Trifibre Ltd,15588L
Gloucester City Council,23UE,Hempsted Market/Car Boot,HM234,Sewerage And Environ Charges,3402,HIRE AUG 2015,28/09/2015,408327,103.4,NET,Abbey Loos Limited,10787B
Gloucester City Council,23UE,Homelessness Prevention,CH122,Basic Pay - Temporary Staff,2751,temporary staff W/E 20/09/15,28/09/2015,408326,795.5,NET,Greenacre Recruitment Ltd,15817V
Gloucester City Council,23UE,Interest Payable,VR100,Bae Systems Pension Fund,7822,half yearly interest re BAE Systems loan,28/09/2015,408389,29706.16,NET,Nortrust Nominees Ltd,15996R
Gloucester City Council,23UE,Interest Payable,VR100,Bae Systems Pension Fund,7822,half yearly interest re BAE Systems loan,28/09/2015,408390,69314.38,NET,Nortrust Nominees Ltd,15996R
Gloucester City Council,23UE,Internal Audit,RT300,Fees For Services Received,5350,AUDIT 2015/16,28/09/2015,408202,48795,NET,Gloucestershire County Council,18650D
Gloucester City Council,23UE,REDACTED,REDACTED,REDACTED,REDACTED,REDACTED,28/09/2015,REDACTED,530,NET,REDACTED,REDACTED
Gloucester City Council,23UE,Kings Quarter,RY146,Contract Payments,0020,Kings Square works,28/09/2015,408135,350,CAP,Roadmark Ltd,37743T
Gloucester City Council,23UE,Off Street Car Parks,PP110,General Repair/Maint Buildings,3000,Kings Walk car park works,28/09/2015,408134,1004.25,NET,Roadmark Ltd,37743T
Gloucester City Council,23UE,Rugby World Cup,LT450,Fees For Services Received,5350,GAMES,28/09/2015,408328,720,NET,Matthews Leisure (Uk) Ltd,53395W
Gloucester City Council,23UE,Advance City Attractions,LT109,Materials For Sale,5080,VISIT AUG 2015,29/09/2015,408436,55,NET,Drayton Manor Park Ltd,10744W
Gloucester City Council,23UE,Advance City Attractions,LT109,Sale Of Goods And Services,9230,VISIT AUG 2015,29/09/2015,408436,-10,NET,Drayton Manor Park Ltd,10744W
Gloucester City Council,23UE,Asbru - Other Funders,FP846,Other Minor Supplies Services,5590,BALLOONS,29/09/2015,408454,90,NET,Wedding Creations Of Gloucestershire,15855L
Gloucester City Council,23UE,Business Transformation & Tech,RT700,Computer Software <5000,5425,MAGNIFIER,29/09/2015,408344,910,NET,Dolphin Computer Access Ltd,15846M
Gloucester City Council,23UE,Civic Admin And Hospitality,RC210,Hire Of Taxis,4053,CHAUFFEUR,29/09/2015,408461,450,NET,Chris Hall Chauffeuring,11660U
Gloucester City Council,23UE,Civic Admin And Hospitality,RC210,Muniments And Regalia,5033,REPAIRS,29/09/2015,408462,75,NET,The Goldman Ltd,04699D
Gloucester City Council,23UE,Community Safety Projects,FP500,Basic Pay - Temporary Staff,2751,temporary staff W/E 04/09/15,29/09/2015,407860,509.83,NET,Travail Employment Ltd,49371W
Gloucester City Council,23UE,Community Safety Projects,FP500,Basic Pay - Temporary Staff,2751,temporary staff W/E 11/09/15,29/09/2015,408206,503.7,NET,Travail Employment Ltd,49371W
Gloucester City Council,23UE,Contact Centre,RB300,Clothing,5200,CLOTHING,29/09/2015,408320,25,NET,Meltemi Company Clothing Limited,54572N
Gloucester City Council,23UE,Council Streetcare Team,HI101,Maint Of Grounds - General,3030,SIGN,29/09/2015,408407,25,NET,Severn Signs Ltd,49841D
Gloucester City Council,23UE,Council Streetcare Team,HI101,Overtime -Building Maint Staff,1303,PARK FOUNTAIN,29/09/2015,408315,287,NET,Ermin Plant Hire & Services Ltd,14150V
Gloucester City Council,23UE,Docks Complex - Services,RB100,Operational Equipment <5000,5012,LANYARDS,29/09/2015,408318,330,NET,Bannerbridge Plc,13703G
Gloucester City Council,23UE,Economic Development,FP300,Business Grant,7116,BROADBAND,29/09/2015,408207,2245,NET,Edge Networks (Uk) Ltd,15839J
Gloucester City Council,23UE,Economic Development,FP300,Business Grant,7116,BROADBAND,29/09/2015,408208,2245,NET,Edge Networks (Uk) Ltd,15839J
Gloucester City Council,23UE,Economic Development,FP300,Business Grant,7116,BROADBAND,29/09/2015,408209,2245,NET,Edge Networks (Uk) Ltd,15839J
Gloucester City Council,23UE,Economic Development,FP300,Business Grant,7116,BROADBAND,29/09/2015,408210,2245,NET,Edge Networks (Uk) Ltd,15839J
Gloucester City Council,23UE,Green Garden Waste,HI105,Basic Pay - Temporary Staff,2751,STAFF W/E 18/09/15,29/09/2015,408340,1940.73,NET,One To One Recruitment,04752H
Gloucester City Council,23UE,REDACTED,REDACTED,REDACTED,REDACTED,REDACTED,29/09/2015,REDACTED,200,NET,REDACTED,REDACTED
Gloucester City Council,23UE,REDACTED,REDACTED,REDACTED,REDACTED,REDACTED,29/09/2015,REDACTED,250,NET,REDACTED,REDACTED
Gloucester City Council,23UE,REDACTED,REDACTED,REDACTED,REDACTED,REDACTED,29/09/2015,REDACTED,100,NET,REDACTED,REDACTED
Gloucester City Council,23UE,REDACTED,REDACTED,REDACTED,REDACTED,REDACTED,29/09/2015,REDACTED,420,NET,REDACTED,REDACTED
Gloucester City Council,23UE,Homelessness,CH120,Fees For Services Received,5350,MEDICAL REPORTS,29/09/2015,408450,20.5,NET,Saintbridge Surgery,58374F
Gloucester City Council,23UE,Homelessness,CH120,Fees For Services Received,5350,INTERPRETER,29/09/2015,408403,55.3,NET,Prime Production Ltd,06262F
Gloucester City Council,23UE,Homelessness,CH120,Fees For Services Received,5350,MEDICAL REPORTS,29/09/2015,408448,20.5,NET,Dr R Watkins & Partners,59237H
Gloucester City Council,23UE,Homelessness,CH120,General Repair/Maint Buildings,3000,CHAIR,29/09/2015,408404,104,NET,Bestbuy Office Chairs,15521W
Gloucester City Council,23UE,Homelessness,CH120,Removal And Storage Fees,5513,temporary storage,29/09/2015,408409,157.5,NET,Advanced Removals & Storage Ltd,57142R
Gloucester City Council,23UE,Homelessness,CH120,Removal And Storage Fees,5513,temporary storage,29/09/2015,408451,37.29,NET,Advanced Removals & Storage Ltd,57142R
Gloucester City Council,23UE,Homelessness,CH120,Removal And Storage Fees,5513,temporary storage,29/09/2015,408446,135,NET,Advanced Removals & Storage Ltd,57142R
Gloucester City Council,23UE,Homelessness,CH120,Removal And Storage Fees,5513,temporary storage,29/09/2015,408447,288.64,NET,Advanced Removals & Storage Ltd,57142R
Gloucester City Council,23UE,Homelessness,CH120,Removal And Storage Fees,5513,temporary storage,29/09/2015,408439,195.43,NET,Advanced Removals & Storage Ltd,57142R
Gloucester City Council,23UE,Homelessness,CH120,Removal And Storage Fees,5513,temporary storage,29/09/2015,408449,33.43,NET,Advanced Removals & Storage Ltd,57142R
Gloucester City Council,23UE,Homelessness,CH120,Removal And Storage Fees,5513,temporary storage,29/09/2015,408445,168.75,NET,Advanced Removals & Storage Ltd,57142R
Gloucester City Council,23UE,Homelessness,CH120,Removal And Storage Fees,5513,temporary storage,29/09/2015,404565,421.29,NET,Advanced Removals & Storage Ltd,57142R
Gloucester City Council,23UE,Homelessness,CH120,Removal And Storage Fees,5513,temporary storage,29/09/2015,408441,234.64,NET,Advanced Removals & Storage Ltd,57142R
Gloucester City Council,23UE,Homelessness,CH120,Removal And Storage Fees,5513,temporary storage,29/09/2015,408452,180,NET,Advanced Removals & Storage Ltd,57142R
Gloucester City Council,23UE,Homelessness,CH120,Removal And Storage Fees,5513,temporary storage,29/09/2015,408442,117.32,NET,Advanced Removals & Storage Ltd,57142R
Gloucester City Council,23UE,Homelessness,CH120,Removal And Storage Fees,5513,temporary storage,29/09/2015,408440,39.11,NET,Advanced Removals & Storage Ltd,57142R
Gloucester City Council,23UE,Investment Property,RB500,General Repair/Maint Buildings,3000,TRANSFORMER,29/09/2015,408342,293,NET,Universal Fibre Optics Ltd,15840A
Gloucester City Council,23UE,Kings Quarter,RY146,Contract Payments,0020,AUG 2015,29/09/2015,407191,2000,CAP,Sweett (Uk) Ltd,14770R
Gloucester City Council,23UE,Kings Quarter,RY146,Contract Payments,0020,kings quarter,29/09/2015,407089,25103.57,CAP,Gva Grimley,56359W
Gloucester City Council,23UE,Licences,HE510,Subsistence (Non - Training),5500,MEMBERSHIP,29/09/2015,408459,250,NET,Institute Of Licensing Ltd,11205Z
Gloucester City Council,23UE,REDACTED,REDACTED,REDACTED,REDACTED,REDACTED,29/09/2015,REDACTED,318,NET,REDACTED,REDACTED
Gloucester City Council,23UE,Managing Director,RE100,Fees For Services Received,5350,MD COSTS,29/09/2015,408329,12000,NET,Gloucestershire County Council,18650D
Gloucester City Council,23UE,Marchants,LT108,Materials For Sale,5080,JULY 2015,29/09/2015,408424,5750,NET,Marchants Coaches Ltd,48151Y
Gloucester City Council,23UE,Planning Policy,PT300,Fees For Services Received,5350,PLAYING PITCH STRATEGY 3RD STAGE PAYMENT,29/09/2015,408443,5400,NET,Knight Kavanagh & Page (Kkp),15044K
Gloucester City Council,23UE,Pollution Control,HE300,Charges For Services,9300,56 SALISBURY RD,29/09/2015,407851,80,NET,Severnside Security Ltd,14661M
Gloucester City Council,23UE,Pollution Control,HE300,Charges For Services,9300,ADAPTER,29/09/2015,408330,88,NET,Campbell Associates,58924P
Gloucester City Council,23UE,Rehousing,CH111,Fees For Services Received,5350,MEDICAL REPORTS,29/09/2015,408425,20.5,NET,Gloucester Health Access Centre,11611H
Gloucester City Council,23UE,Rehousing,CH111,Fees For Services Received,5350,MEDICAL REPORTS,29/09/2015,408453,20.5,NET,Kingsholm Surgery,11948S
Gloucester City Council,23UE,Retail Market - Landlord,HM300,Advertising And Publicity,5702,advert in Market Trader,29/09/2015,408128,210,NET,The Worlds Fair Ltd,49321M
Gloucester City Council,23UE,Retail Market - Landlord,HM300,Operational Equipment <5000,5012,LAMPS,29/09/2015,408437,61.4,NET,City Electrical Factors,09325C
Gloucester City Council,23UE,Tic Trading,LT110,Materials For Sale,5080,GOODS FOR RESALE,29/09/2015,408402,183.75,NET,Norfolk China Ltd,12863S
Gloucester City Council,23UE,Tourism Marketing,LT100,Window Cleaning,3610,WINDOW CLEANING,29/09/2015,408421,42.93,NET,Interserve Fs (Uk) Limited,00442K
Gloucester City Council,23UE,Tourism Marketing,LT100,Window Cleaning,3610,WINDOW CLEANING,29/09/2015,408422,24,NET,Interserve Fs (Uk) Limited,00442K
Gloucester City Council,23UE,Tourism Marketing,LT100,Window Cleaning,3610,WINDOW CLEANING,29/09/2015,408423,12,NET,Interserve Fs (Uk) Limited,00442K
Gloucester City Council,23UE,Utilities,PT502,Electricity Supply,3110,UTILITIES TO SEPT 2015,29/09/2015,408416,4363.51,NET,West Mercia Energy,11669Z
Gloucester City Council,23UE,Utilities,PT502,Gas Supply,3100,UTILITIES TO SEPT 2015,29/09/2015,408416,3619.8,NET,West Mercia Energy,11669Z
Gloucester City Council,23UE,Vehicles,RS140,Routine R And M - Vehicles,4011,MOT,29/09/2015,408410,347.78,NET,123 Car & Commercial,07651E
Gloucester City Council,23UE,Vehicles,RS140,Routine R And M - Vehicles,4011,MOT,29/09/2015,408411,40,NET,123 Car & Commercial,07651E
Gloucester City Council,23UE,Asset Management,RS300,Vocational Training,2970,Capital Valuations training,30/09/2015,408427,375,NET,Cipfa Business Limited,09260F
Gloucester City Council,23UE,Blackfriars,LA609,Room Hire,9410,room hire re CAMRA Beer & Cider Festival,30/09/2015,408508,500,NET,Gloucestershire County Council,18650D
Gloucester City Council,23UE,Business Transformation & Tech,RT700,Fees For Services Received,5350,network remediation,30/09/2015,408509,9797.76,NET,Civica Uk Ltd,10841X
Gloucester City Council,23UE,Business Transformation & Tech,RT700,Fees For Services Received,5350,Network remediation,30/09/2015,408145,67016.83,NET,Civica Uk Ltd,10841X
Gloucester City Council,23UE,REDACTED,REDACTED,REDACTED,REDACTED,REDACTED,30/09/2015,REDACTED,4571,CAP,REDACTED,REDACTED
Gloucester City Council,23UE,Docks Complex - Services,RB100,Operational Equipment <5000,5012,nov 2015 - feb 2016,30/09/2015,408366,162.57,NET,Siemens Financial Services Ltd,08349H
Gloucester City Council,23UE,Docks Complex - Services,RB100,Service Charges,3020,tic,30/09/2015,406175,153,NET,Greenworks Solutions Ltd,05909G
Gloucester City Council,23UE,Guildhall Bar And Caf�,LA210,Catering Provisions -Food,5110,food,30/09/2015,407980,40.9,NET,Janes Pantry,24500W
Gloucester City Council,23UE,Guildhall Cinema,LA202,Fees For Services Received,5350,film transport,30/09/2015,407604,219.59,NET,Nft Logistics Ltd,13505N
Gloucester City Council,23UE,REDACTED,REDACTED,REDACTED,REDACTED,REDACTED,30/09/2015,REDACTED,137.29,NET,REDACTED,REDACTED
Gloucester City Council,23UE,REDACTED,REDACTED,REDACTED,REDACTED,REDACTED,30/09/2015,REDACTED,943.5,NET,REDACTED,REDACTED
Gloucester City Council,23UE,Homelessness,CH120,Fees For Services Received,5350,MEDICAL REPORTS,30/09/2015,408426,35,NET,Now Medical,03468L
Gloucester City Council,23UE,Homelessness,CH120,Fees For Services Received,5350,MEDICAL REPORTS,30/09/2015,408444,20.5,NET,Longlevens Surgery,57415C
Gloucester City Council,23UE,Human Resources,EH100,Fees For Services Received,5350,provision of interim HR support,30/09/2015,408129,15000,NET,Gloucestershire County Council,18650D
Gloucester City Council,23UE,Investment Property,RB500,General Repair/Maint Buildings,3000,BLACKFRIARS,30/09/2015,408322,555.28,NET,Adt Fire & Security Plc,54086D
Gloucester City Council,23UE,Registration Of Electors,RS400,Fees For Services Received,5350,Boundary review training,30/09/2015,408205,200,NET,Xpress Software Solutions,13533H
Gloucester City Council,23UE,Rehousing,CH111,Fees For Services Received,5350,MEDICAL REPORTS,30/09/2015,408426,250,NET,Now Medical,03468L
Gloucester City Council,23UE,Rehousing,CH111,Removal And Storage Fees,5513,MEDICAL REPORTS,30/09/2015,408426,25,NET,Now Medical,03468L
Gloucester City Council,23UE,Business Grants,GY007,Contract Payments,0020,Evening Vitality Grant,,408527,10000,CAP,Hubble Bubble Coffee House,15019J
Gloucester City Council,23UE,Cctv Revenue Budget,FP501,Security Equipment Serv/Repair,3038,CCTV,,408430,400,NET,Southern Electric Contracting Ltd,08337R
Gloucester City Council,23UE,Cemeteries,HC300,Operational Materials,5070,Various Items,,408540,65.4,NET,Garden Machinery Gloucester,55641K
Gloucester City Council,23UE,Cemeteries,HC300,Routine R And M - Vehicles,4011,Various Items,,408537,224.28,NET,Garden Machinery Gloucester,55641K
Gloucester City Council,23UE,Cemeteries,HC300,Routine R And M - Vehicles,4011,Various Items,,408538,120.63,NET,Garden Machinery Gloucester,55641K
Gloucester City Council,23UE,Cemeteries,HC300,Routine R And M - Vehicles,4011,Various Items,,408539,181.44,NET,Garden Machinery Gloucester,55641K
Gloucester City Council,23UE,Client Revs & Bens Contract,RT240,Fees For Services Received,5350,UNIVERSAL CREDIT SYSTEM,,408429,805.6,NET,Civica Uk Ltd,10841X
Gloucester City Council,23UE,Contact Centre,RB300,Other Minor Supplies Services,5590,OCT 2015,,408412,237.57,NET,Office Response,09439K
Gloucester City Council,23UE,Contact Centre,RB300,Postages,5400,ACCT 0074842000 W/E 05/09/15,,408204,3365.67,NET,Royal Mail S.Wales & South West,35830S
Gloucester City Council,23UE,Contact Centre,RB300,Postages,5400,ACCT 0252446000 W/E 17/09/15,,408332,1698.77,NET,Royal Mail S.Wales & South West,35830S
Gloucester City Council,23UE,Council Streetcare Team,HI101,Maint Of Grounds - General,3030,Castlemeads Car Park,,408544,778,NET,Enterprise (Aol) Ltd,06695G
Gloucester City Council,23UE,Council Streetcare Team,HI101,Maint Of Grounds - General,3030,Castlemeads Car Park,,408545,778,NET,Enterprise (Aol) Ltd,06695G
Gloucester City Council,23UE,Crematorium,HC200,Memorial Plaques,5053,TABLET,,408460,80,NET,The Columbaria Company,55078T
Gloucester City Council,23UE,Crematorium,HC200,Repair/Maint Of Fixed Plant,3006,Call Out Repair,,408566,218.45,NET,Facultatieve Technologies Ltd,51210H
Gloucester City Council,23UE,Development Management,PT200,Microfilming / Cd-Rom Storage,5330,Storage September 2015,,408528,71.04,NET,Transmedia Technology Ltd,08635T
Gloucester City Council,23UE,Docks Complex - Services,RB100,Catering Provisions -Food,5110,CREDITED ON 854138,,407010,57.56,NET,Nisbets,55372P
Gloucester City Council,23UE,Docks Complex - Services,RB100,Service Charges,3020,Service Charge Oct - Dec 2015,,408535,13936,NET,Gloucester Quays Management Ltd,13497K
Gloucester City Council,23UE,Environmental Planning,LM340,Repair/Maint Of Monuments,3004,Kings Walk Bastion repairs,,404598,2515,NET,J M Grail (General Engineering) Ltd,03204A
Gloucester City Council,23UE,REDACTED,REDACTED,REDACTED,REDACTED,REDACTED,,REDACTED,245.84,NET,REDACTED,REDACTED
Gloucester City Council,23UE,REDACTED,REDACTED,REDACTED,REDACTED,REDACTED,,REDACTED,75,NET,REDACTED,REDACTED
Gloucester City Council,23UE,REDACTED,REDACTED,REDACTED,REDACTED,REDACTED,,REDACTED,400,NET,REDACTED,REDACTED
Gloucester City Council,23UE,REDACTED,REDACTED,REDACTED,REDACTED,REDACTED,,REDACTED,50,NET,REDACTED,REDACTED
Gloucester City Council,23UE,Kings Quarter,RY146,Contract Payments,0020,Fees,,408530,1104,CAP,Aecom Ltd,12443V
Gloucester City Council,23UE,Kings Quarter,RY146,Contract Payments,0020,GCTH Outline Business Case,,408531,11364,CAP,Aecom Ltd,12443V
Gloucester City Council,23UE,Kings Quarter,RY146,Contract Payments,0020,Kings Quarter Bus Station,,408532,342.86,CAP,Gloucestershire County Council,18650D
Gloucester City Council,23UE,Rehousing,CH111,Fees For Services Received,5350,Right to Move Charges,,408562,200,NET,Forest Of Dean District Council,15985W
Gloucester City Council,23UE,Retail Market - Landlord,HM300,Sewerage And Environ Charges,3402,WASTE OCT 2015,,407819,102.78,NET,Phs Group Ltd,55193S
Gloucester City Council,23UE,Retail Market - Landlord,HM300,Sewerage And Environ Charges,3402,WASTE TO 09/2016,,407820,71.95,NET,Phs Group Ltd,55193S
Gloucester City Council,23UE,Rugby World Cup,LT450,Fees For Services Received,5350,Barriers and Fencing,,408558,3740.6,NET,Show Services Group Ltd,56329F
Gloucester City Council,23UE,Safer Stronger Communities,FP841,Other Minor Supplies Services,5590,SIGN,,408432,41,NET,Severn Signs Ltd,49841D
Gloucester City Council,23UE,Southgate Moorings,RB537,Service Charges,3020,Service Charge Oct - Dec 2015,,408534,2000,NET,Gloucester Quays Management Ltd,13497K
Gloucester City Council,23UE,Utilities,PT502,Electricity Supply,3110,ROMAN EXCAVATIONS,,408069,78.02,NET,Southern Electric,05714A
Gloucester City Council,23UE,Utilities,PT502,Electricity Supply,3110,ROMAN EXCAVATIONS,,408072,81.54,NET,Southern Electric,05714A
Gloucester City Council,23UE,Utilities,PT502,Electricity Supply,3110,ROMAN EXCAVATIONS,,408073,86.6,NET,Southern Electric,05714A
Gloucester City Council,23UE,Utilities,PT502,Electricity Supply,3110,ROMAN EXCAVATIONS,,408180,74.68,NET,Southern Electric,05714A
Gloucester City Council,23UE,Vehicles,RS140,Fuel,4012,FUEL,,408357,171.96,NET,Allstar Business Solutions Ltd (Arval),06594A
,,,,,,,,Sum:,8564530.21,,,
